Workbook

Sheet Base (hidden)
A1: Тип | B1: Артикул | C1: Наименование | D1: Ед.изм. | E1: Масса | F1: Примечание | G1: № п/п | H1: Кратн. | I1: Снят | J1: OboBettermann
A2: KSR20020 | B2: 6249842 | C2: Кольцо для защиты кромок LKM 20x20 мм, серый | D2: шт. | E2: 0.009 | G2: 8 | H2: 1 | I2: Нет
A3: KSR20030 | B3: 6249844 | C3: Кольцо для защиты кромок LKM 20x30 мм, серый | D3: шт. | E3: 0.011 | G3: 8 | H3: 1 | I3: Нет
A4: KSR30030 | B4: 6249847 | C4: Кольцо для защиты кромок LKM 30x30 мм, серый | D4: шт. | E4: 0.013 | G4: 8 | H4: 1 | I4: Нет
A5: KSR40040 | B5: 6249846 | C5: Кольцо для защиты кромок LKM 40x40 мм, серый | D5: шт. | E5: 0.018 | G5: 8 | H5: 1 | I5: Нет
A6: KSR40060 | B6: 6249848 | C6: Кольцо для защиты кромок LKM 40x60 мм, серый | D6: шт. | E6: 0.023 | G6: 8 | H6: 1 | I6: Нет
A7: KSR60060 | B7: 6249850 | C7: Кольцо для защиты кромок LKM 60x60 мм, серый | D7: шт. | E7: 0.024 | G7: 8 | H7: 1 | I7: Нет
A8: KSR60100 | B8: 6249852 | C8: Кольцо для защиты кромок LKM 60x100 мм, серый | D8: шт. | E8: 0.034 | G8: 8 | H8: 1 | I8: Нет
A9: KSR60150 | B9: 6249854 | C9: Кольцо для защиты кромок LKM 60x150 мм, серый | D9: шт. | E9: 0.044 | G9: 8 | H9: 1 | I9: Нет
A10: KSR60200 | B10: 6249856 | C10: Кольцо для защиты кромок LKM 60x200 мм, серый | D10: шт. | E10: 0.047 | G10: 8 | H10: 1 | I10: Нет
A11: KSR80080 | B11: 6249865 | C11: Кольцо для защиты кромок LKM 80x80 мм, серый | D11: шт. | E11: 0.038 | G11: 8 | H11: 1 | I11: Нет
A12: LKM A40040FS | B12: 6247563 | C12: Угол внешний кабель-канала LKM 40x40 мм, сталь оцинкованная | D12: шт. | E12: 0.386 | G12: 4 | H12: 1 | I12: Нет
A13: LKM A40040RW | B13: 6249086 | C13: Угол внешний кабель-канала LKM 40x40 мм, сталь белый | D13: шт. | E13: 0.386 | G13: 4 | H13: 1 | I13: Нет
A14: LKM A40060FS | B14: 6247571 | C14: Угол внешний кабель-канала LKM 40x60 мм, сталь оцинкованная | D14: шт. | E14: 0.463 | G14: 4 | H14: 1 | I14: Нет
A15: LKM A40060RW | B15: 6249094 | C15: Угол внешний кабель-канала LKM 40x60 мм, сталь белый | D15: шт. | E15: 0.463 | G15: 4 | H15: 1 | I15: Нет
A16: LKM A60060FS | B16: 6248047 | C16: Угол внешний кабель-канала LKM 60x60 мм, сталь оцинкованная | D16: шт. | E16: 0.558 | G16: 4 | H16: 1 | I16: Нет
A17: LKM A60060RW | B17: 6249558 | C17: Угол внешний кабель-канала LKM 60x60 мм, сталь белый | D17: шт. | E17: 0.558 | G17: 4 | H17: 1 | I17: Нет
A18: LKM A60100FS | B18: 6248063 | C18: Угол внешний кабель-канала LKM 60x100 мм, сталь оцинкованная | D18: шт. | E18: 0.731 | G18: 4 | H18: 1 | I18: Нет
A19: LKM A60100RW | B19: 6249574 | C19: Угол внешний кабель-канала LKM 60x100 мм, сталь белый | D19: шт. | E19: 0.731 | G19: 4 | H19: 1 | I19: Нет
A20: LKM A60150FS | B20: 6248071 | C20: Угол внешний кабель-канала LKM 60x150 мм, сталь оцинкованная | D20: шт. | E20: 0.913 | G20: 4 | H20: 1 | I20: Нет
A21: LKM A60150RW | B21: 6249582 | C21: Угол внешний кабель-канала LKM 60x150 мм, сталь белый | D21: шт. | E21: 0.913 | G21: 4 | H21: 1 | I21: Нет
A22: LKM A60200FS | B22: 6248098 | C22: Угол внешний кабель-канала LKM 60x200 мм, сталь оцинкованная | D22: шт. | E22: 1.14 | G22: 4 | H22: 1 | I22: Нет
A23: LKM A60200RW | B23: 6249590 | C23: Угол внешний кабель-канала LKM 60x200 мм, сталь белый | D23: шт. | E23: 1.14 | G23: 4 | H23: 1 | I23: Нет
A24: LKM A80080FS | B24: 6248332 | C24: Угол внешний кабель-канала LKM 80x80 мм, сталь оцинкованная | D24: шт. | E24: 0.753 | G24: 4 | H24: 1 | I24: Нет
A25: LKM A80080RW | B25: 6248432 | C25: Угол внешний кабель-канала LKM 80x80 мм, сталь белый | D25: шт. | E25: 0.753 | G25: 4 | H25: 1 | I25: Нет
A26: LKM E40040FS | B26: 6247881 | C26: Заглушка кабель-канала LKM 40x40 мм, сталь оцинкованная | D26: шт. | E26: 0.025 | G26: 7 | H26: 1 | I26: Нет
A27: LKM E40040RW | B27: 6249418 | C27: Заглушка кабель-канала LKM 40x40 мм, сталь белый | D27: шт. | E27: 0.025 | G27: 7 | H27: 1 | I27: Нет
A28: LKM E40060FS | B28: 6247903 | C28: Заглушка кабель-канала LKM 40x60 мм, сталь оцинкованная | D28: шт. | E28: 0.03 | G28: 7 | H28: 1 | I28: Нет
A29: LKM E40060RW | B29: 6249426 | C29: Заглушка кабель-канала LKM 40x60 мм, сталь белый | D29: шт. | E29: 0.03 | G29: 7 | H29: 1 | I29: Нет
A30: LKM E60060FS | B30: 6248284 | C30: Заглушка кабель-канала LKM 60x60 мм, сталь оцинкованная | D30: шт. | E30: 0.045 | G30: 7 | H30: 1 | I30: Нет
A31: LKM E60060RW | B31: 6249795 | C31: Заглушка кабель-канала LKM 60x60 мм, сталь белый | D31: шт. | E31: 0.045 | G31: 7 | H31: 1 | I31: Нет
A32: LKM E60100FS | B32: 6248306 | C32: Заглушка кабель-канала LKM 60x100 мм, сталь оцинкованная | D32: шт. | E32: 0.062 | G32: 7 | H32: 1 | I32: Нет
A33: LKM E60100RW | B33: 6249817 | C33: Заглушка кабель-канала LKM 60x100 мм, сталь белый | D33: шт. | E33: 0.065 | G33: 7 | H33: 1 | I33: Нет
A34: LKM E60150FS | B34: 6248314 | C34: Заглушка кабель-канала LKM 60x150 мм, сталь оцинкованная | D34: шт. | E34: 0.084 | G34: 7 | H34: 1 | I34: Нет
A35: LKM E60150RW | B35: 6249825 | C35: Заглушка кабель-канала LKM 60x150 мм, сталь белый | D35: шт. | E35: 0.09 | G35: 7 | H35: 1 | I35: Нет
A36: LKM E60200FS | B36: 6248322 | C36: Заглушка кабель-канала LKM 60x200 мм, сталь оцинкованная | D36: шт. | E36: 0.108 | G36: 7 | H36: 1 | I36: Нет
A37: LKM E60200RW | B37: 6249833 | C37: Заглушка кабель-канала LKM 60x200 мм, сталь белый | D37: шт. | E37: 0.115 | G37: 7 | H37: 1 | I37: Нет
A38: LKM E80080FS | B38: 6248344 | C38: Заглушка кабель-канала LKM 80x80 мм, сталь оцинкованная | D38: шт. | E38: 0.07 | G38: 7 | H38: 1 | I38: Нет
A39: LKM E80080RW | B39: 6248454 | C39: Заглушка кабель-канала LKM 80x80 мм, сталь белый | D39: шт. | E39: 0.07 | G39: 7 | H39: 1 | I39: Нет
A40: LKM F40040FS | B40: 6247490 | C40: Угол плоский с крышкой кабель-канала LKM 40x40 мм, сталь оцинкованная | D40: шт. | E40: 0.371 | G40: 6 | H40: 1 | I40: Нет
A41: LKM F40040RW | B41: 6248993 | C41: Угол плоский с крышкой кабель-канала LKM 40x40 мм, сталь белый | D41: шт. | E41: 0.371 | G41: 6 | H41: 1 | I41: Нет
A42: LKM F40060FS | B42: 6247504 | C42: Угол плоский с крышкой кабель-канала LKM 40x60 мм, сталь оцинкованная | D42: шт. | E42: 0.474 | G42: 6 | H42: 1 | I42: Нет
A43: LKM F40060RW | B43: 6249000 | C43: Угол плоский с крышкой кабель-канала LKM 40x60 мм, сталь белый | D43: шт. | E43: 0.474 | G43: 6 | H43: 1 | I43: Нет
A44: LKM F60060FS | B44: 6247989 | C44: Угол плоский с крышкой кабель-канала LKM 60x60 мм, сталь оцинкованная | D44: шт. | E44: 0.547 | G44: 6 | H44: 1 | I44: Нет
A45: LKM F60060RW | B45: 6249485 | C45: Угол плоский с крышкой кабель-канала LKM 60x60 мм, сталь белый | D45: шт. | E45: 0.547 | G45: 6 | H45: 1 | I45: Нет
A46: LKM F60100FS | B46: 6248004 | C46: Угол плоский с крышкой кабель-канала LKM 60x100 мм, сталь оцинкованная | D46: шт. | E46: 0.634 | G46: 6 | H46: 1 | I46: Нет
A47: LKM F60100RW | B47: 6249507 | C47: Угол плоский с крышкой кабель-канала LKM 60x100 мм, сталь белый | D47: шт. | E47: 0.634 | G47: 6 | H47: 1 | I47: Нет
A48: LKM F60150FS | B48: 6248012 | C48: Угол плоский с крышкой кабель-канала LKM 60x150 мм, сталь оцинкованная | D48: шт. | E48: 1.135 | G48: 6 | H48: 1 | I48: Нет
A49: LKM F60150RW | B49: 6249515 | C49: Угол плоский с крышкой кабель-канала LKM 60x150 мм, сталь белый | D49: шт. | E49: 1.135 | G49: 6 | H49: 1 | I49: Нет
A50: LKM F60200FS | B50: 6248020 | C50: Угол плоский с крышкой кабель-канала LKM 60x200 мм, сталь оцинкованная | D50: шт. | E50: 1.544 | G50: 6 | H50: 1 | I50: Нет
A51: LKM F60200RW | B51: 6249523 | C51: Угол плоский с крышкой кабель-канала LKM 60x200 мм, сталь белый | D51: шт. | E51: 1.544 | G51: 6 | H51: 1 | I51: Нет
A52: LKM F80080FS | B52: 6248328 | C52: Угол плоский с крышкой кабель-канала LKM 80x80 мм, сталь оцинкованная | D52: шт. | E52: 0.8 | G52: 6 | H52: 1 | I52: Нет
A53: LKM F80080RW | B53: 6248428 | C53: Угол плоский с крышкой кабель-канала LKM 80x80 мм, сталь белый | D53: шт. | E53: 0.8 | G53: 6 | H53: 1 | I53: Нет
A54: LKM I40040FS | B54: 6247652 | C54: Угол внутренний кабель-канала LKM 40x40 мм, сталь оцинкованная | D54: шт. | E54: 0.28 | G54: 3 | H54: 1 | I54: Нет
A55: LKM I40040RW | B55: 6249167 | C55: Угол внутренний кабель-канала LKM 40x40 мм, сталь белый | D55: шт. | E55: 0.28 | G55: 3 | H55: 1 | I55: Нет
A56: LKM I40060FS | B56: 6247660 | C56: Угол внутренний кабель-канала LKM 40x60 мм, сталь оцинкованная | D56: шт. | E56: 0.314 | G56: 3 | H56: 1 | I56: Нет
A57: LKM I40060RW | B57: 6249175 | C57: Угол внутренний кабель-канала LKM 40x60 мм, сталь белый | D57: шт. | E57: 0.314 | G57: 3 | H57: 1 | I57: Нет
A58: LKM I60060FS | B58: 6248128 | C58: Угол внутренний кабель-канала LKM 60x60 мм, сталь оцинкованная | D58: шт. | E58: 0.319 | G58: 3 | H58: 1 | I58: Нет
A59: LKM I60060RW | B59: 6249612 | C59: Угол внутренний кабель-канала LKM 60x60 мм, сталь белый | D59: шт. | E59: 0.319 | G59: 3 | H59: 1 | I59: Нет
A60: LKM I60100FS | B60: 6248144 | C60: Угол внутренний кабель-канала LKM 60x100 мм, сталь оцинкованная | D60: шт. | E60: 0.394 | G60: 3 | H60: 1 | I60: Нет
A61: LKM I60100RW | B61: 6249639 | C61: Угол внутренний кабель-канала LKM 60x100 мм, сталь белый | D61: шт. | E61: 0.394 | G61: 3 | H61: 1 | I61: Нет
A62: LKM I60150FS | B62: 6248152 | C62: Угол внутренний кабель-канала LKM 60x150 мм, сталь оцинкованная | D62: шт. | E62: 0.484 | G62: 3 | H62: 1 | I62: Нет
A63: LKM I60150RW | B63: 6249647 | C63: Угол внутренний кабель-канала LKM 60x150 мм, сталь белый | D63: шт. | E63: 0.484 | G63: 3 | H63: 1 | I63: Нет
A64: LKM I60200FS | B64: 6248160 | C64: Угол внутренний кабель-канала LKM 60x200 мм, сталь оцинкованная | D64: шт. | E64: 0.575 | G64: 3 | H64: 1 | I64: Нет
A65: LKM I60200RW | B65: 6249655 | C65: Угол внутренний кабель-канала LKM 60x200 мм, сталь белый | D65: шт. | E65: 0.575 | G65: 3 | H65: 1 | I65: Нет
A66: LKM I80080FS | B66: 6248336 | C66: Угол внутренний кабель-канала LKM 80x80 мм, сталь оцинкованная | D66: шт. | E66: 0.387 | G66: 3 | H66: 1 | I66: Нет
A67: LKM I80080RW | B67: 6248436 | C67: Угол внутренний кабель-канала LKM 80x80 мм, сталь белый | D67: шт. | E67: 0.387 | G67: 3 | H67: 1 | I67: Нет
A68: LKM SV20 | B68: 6247431 | C68: Соединитель стыковой каналов LKM20020, нерж. сталь | D68: шт. | E68: 0.0019 | G68: 2 | H68: 1 | I68: Нет
A69: LKM SV30 | B69: 6247434 | C69: Соединитель стыковой каналов LKM20030, LKM30030, нерж. сталь | D69: шт. | E69: 0.004 | G69: 2 | H69: 1 | I69: Нет
A70: LKM SV40 | B70: 6247458 | C70: Соединитель стыковой каналов LKM40040, LKM40060, нерж. сталь | D70: шт. | E70: 0.01 | G70: 2 | H70: 1 | I70: Нет
A71: LKM SV60 | B71: 6247466 | C71: Соединитель стыковой каналов LKM60060, 60100, 60150, 60200, нерж. сталь | D71: шт. | E71: 0.016 | G71: 2 | H71: 1 | I71: Нет
A72: LKM SV80 | B72: 6247472 | C72: Соединитель стыковой каналов LKM80080, нерж. сталь | D72: шт. | E72: 0.013 | G72: 2 | H72: 1 | I72: Нет
A73: LKM T40040FS | B73: 6247725 | C73: Т-образная секция с крышкой для кабель-канала LKM 40x40 мм, сталь оцинкованная | D73: шт. | E73: 0.397 | G73: 5 | H73: 1 | I73: Нет
A74: LKM T40040RW | B74: 6249256 | C74: Т-образная секция с крышкой для кабель-канала LKM 40x40 мм, сталь белый | D74: шт. | E74: 0.397 | G74: 5 | H74: 1 | I74: Нет
A75: LKM T40060FS | B75: 6247733 | C75: Т-образная секция с крышкой для кабель-канала LKM 40x60 мм, сталь оцинкованная | D75: шт. | E75: 0.468 | G75: 5 | H75: 1 | I75: Нет
A76: LKM T40060RW | B76: 6249264 | C76: Т-образная секция с крышкой для кабель-канала LKM 40x60 мм, сталь белый | D76: шт. | E76: 0.468 | G76: 5 | H76: 1 | I76: Нет
A77: LKM T60060FS | B77: 6248187 | C77: Т-образная секция с крышкой для кабель-канала LKM 60x60 мм, сталь оцинкованная | D77: шт. | E77: 0.542 | G77: 5 | H77: 1 | I77: Нет
A78: LKM T60060RW | B78: 6249671 | C78: Т-образная секция с крышкой для кабель-канала LKM 60x60 мм, сталь белый | D78: шт. | E78: 0.542 | G78: 5 | H78: 1 | I78: Нет
A79: LKM T60100FS | B79: 6248209 | C79: Т-образная секция с крышкой для кабель-канала LKM 60x100 мм, сталь оцинкованная | D79: шт. | E79: 0.692 | G79: 5 | H79: 1 | I79: Нет
A80: LKM T60100RW | B80: 6249701 | C80: Т-образная секция с крышкой для кабель-канала LKM 60x100 мм, сталь белый | D80: шт. | E80: 0.692 | G80: 5 | H80: 1 | I80: Нет
A81: LKM T60150FS | B81: 6248217 | C81: Т-образная секция с крышкой для кабель-канала LKM 60x150 мм, сталь оцинкованная | D81: шт. | E81: 0.876 | G81: 5 | H81: 1 | I81: Нет
A82: LKM T60150RW | B82: 6249728 | C82: Т-образная секция с крышкой для кабель-канала LKM 60x150 мм, сталь белый | D82: шт. | E82: 0.876 | G82: 5 | H82: 1 | I82: Нет
A83: LKM T60200FS | B83: 6248225 | C83: Т-образная секция с крышкой для кабель-канала LKM 60x200 мм, сталь оцинкованная | D83: шт. | E83: 1.06 | G83: 5 | H83: 1 | I83: Нет
A84: LKM T60200RW | B84: 6249736 | C84: Т-образная секция с крышкой для кабель-канала LKM 60x200 мм, сталь белый | D84: шт. | E84: 1.06 | G84: 5 | H84: 1 | I84: Нет
A85: LKM T80080FS | B85: 6248340 | C85: Т-образная секция с крышкой для кабель-канала LKM 80x80 мм, сталь оцинкованная | D85: шт. | E85: 0.672 | G85: 5 | H85: 1 | I85: Нет
A86: LKM T80080RW | B86: 6248450 | C86: Т-образная секция с крышкой для кабель-канала LKM 80x80 мм, сталь белый | D86: шт. | E86: 0.672 | G86: 5 | H86: 1 | I86: Нет
A87: LKM TWS55 | B87: 6249876 | C87: Перегородка разделительная кабель-канала LKM 55x2000 мм, сталь | D87: м | E87: 0.53 | F87: Ед.изм. - м | G87: 9 | H87: 2 | I87: Нет
A88: LKM TWS75 | B88: 6249880 | C88: Перегородка разделительная кабель-канала LKM 75x2000 мм, сталь | D88: м | E88: 1.14 | F88: Ед.изм. - м | G88: 9 | H88: 2 | I88: Нет
A89: LKM20020FS | B89: 6246966 | C89: Металлический кабель-канал LKM 20x20x2000 мм, сталь оцинкованная | D89: м | E89: 0.46 | F89: Ед.изм. - м | G89: 1 | H89: 2 | I89: Нет
A90: LKM20020RW | B90: 6248462 | C90: Металлический кабель-канал LKM 20x20x2000 мм, сталь белый | D90: м | E90: 0.52 | F90: Ед.изм. - м | G90: 1 | H90: 2 | I90: Нет
A91: LKM20030FS | B91: 6246974 | C91: Металлический кабель-канал LKM 20x30x2000 мм, сталь оцинкованная | D91: м | E91: 0.58 | F91: Ед.изм. - м | G91: 1 | H91: 2 | I91: Нет
A92: LKM20030RW | B92: 6248470 | C92: Металлический кабель-канал LKM 20x30x2000 мм, сталь белый | D92: м | E92: 0.58 | F92: Ед.изм. - м | G92: 1 | H92: 2 | I92: Нет
A93: LKM30030FS | B93: 6246985 | C93: Металлический кабель-канал LKM 30x30x2000 мм, сталь оцинкованная | D93: м | E93: 1.07 | F93: Ед.изм. - м | G93: 1 | H93: 2 | I93: Нет
A94: LKM30030RW | B94: 6248489 | C94: Металлический кабель-канал LKM 30x30x2000 мм, сталь белый | D94: м | E94: 1 | F94: Ед.изм. - м | G94: 1 | H94: 2 | I94: Нет
A95: LKM40040FS | B95: 6246990 | C95: Металлический кабель-канал LKM 40x40x2000 мм, сталь оцинкованная | D95: м | E95: 1.17 | F95: Ед.изм. - м | G95: 1 | H95: 2 | I95: Нет
A96: LKM40040RW | B96: 6248497 | C96: Металлический кабель-канал LKM 40x40x2000 мм, сталь белый | D96: м | E96: 1.276 | F96: Ед.изм. - м | G96: 1 | H96: 2 | I96: Нет
A97: LKM40060FS | B97: 6247016 | C97: Металлический кабель-канал LKM 40x60x2000 мм, сталь оцинкованная | D97: м | E97: 1.512 | F97: Ед.изм. - м | G97: 1 | H97: 2 | I97: Нет
A98: LKM40060RW | B98: 6248519 | C98: Металлический кабель-канал LKM 40x60x2000 мм, сталь белый | D98: м | E98: 1.512 | F98: Ед.изм. - м | G98: 1 | H98: 2 | I98: Нет
A99: LKM60060FS | B99: 6247091 | C99: Металлический кабель-канал LKM 60x60x2000 мм, сталь оцинкованная | D99: м | E99: 1.747 | F99: Ед.изм. - м | G99: 1 | H99: 2 | I99: Нет
A100: LKM60060RW | B100: 6248608 | C100: Металлический кабель-канал LKM 60x60x2000 мм, сталь белый | D100: м | E100: 1.747 | F100: Ед.изм. - м | G100: 1 | H100: 2 | I100: Нет
A101: LKM60100FS | B101: 6247113 | C101: Металлический кабель-канал LKM 60x100x2000 мм, сталь оцинкованная | D101: м | E101: 2.217 | F101: Ед.изм. - м | G101: 1 | H101: 2 | I101: Нет
A102: LKM60100RW | B102: 6248624 | C102: Металлический кабель-канал LKM 60x100x2000 мм, сталь белый | D102: м | E102: 2.217 | F102: Ед.изм. - м | G102: 1 | H102: 2 | I102: Нет
A103: LKM60150FS | B103: 6247148 | C103: Металлический кабель-канал LKM 60x150x2000 мм, сталь оцинкованная | D103: м | E103: 2.801 | F103: Ед.изм. - м | G103: 1 | H103: 2 | I103: Нет
A104: LKM60150RW | B104: 6248640 | C104: Металлический кабель-канал LKM 60x150x2000 мм, сталь белый | D104: м | E104: 2.801 | F104: Ед.изм. - м | G104: 1 | H104: 2 | I104: Нет
A105: LKM60200FS | B105: 6247164 | C105: Металлический кабель-канал LKM 60x200x2000 мм, сталь оцинкованная | D105: м | E105: 3.387 | F105: Ед.изм. - м | G105: 1 | H105: 2 | I105: Нет
A106: LKM60200RW | B106: 6248667 | C106: Металлический кабель-канал LKM 60x200x2000 мм, сталь белый | D106: м | E106: 3.387 | F106: Ед.изм. - м | G106: 1 | H106: 2 | I106: Нет
A107: LKM80080FS | B107: 6247194 | C107: Металлический кабель-канал LKM 80x80x2000 мм, сталь оцинкованная | D107: м | E107: 2.15 | F107: Ед.изм. - м | G107: 1 | H107: 2 | I107: Нет
A108: LKM80080RW | B108: 6248694 | C108: Металлический кабель-канал LKM 80x80x2000 мм, сталь белый | D108: м | E108: 2.38 | F108: Ед.изм. - м | G108: 1 | H108: 2 | I108: Нет
A109: 910 SD 6X40 | B109: 2351064 | C109: Дюбель 6x40 мм | D109: шт. | E109: 0.00555 | G109: 10 | H109: 1 | I109: Нет

Sheet BL (hidden)
A1: Короб | I1: Стыковой соединитель | M1: Крепеж короба | Q1: Внутренний угол | U1: Стык. соед. внутреннего угла | Y1: Крепеж внутреннего угла | AC1: Внешний угол | AG1: Стык. соед. внешнего угла | AK1: Крепеж внешнего угла | AO1: Т-образная секция | AS1: Стык. соед. Т-образной секции | AW1: Крепеж Т-образной секции | BA1: Плоский угол | BE1: Стык. соед. плоского угла | BI1: Крепеж плоского угла | BM1: Заглушка | BQ1: Кольцо для защиты кромок | BU1: Перегородка
A2: Тип | B2: Артикул | C2: Ед.изм. | D2: Кол-во на 1 эл. | E2: Сечение | F2: Глубина (борт) | G2: Высота (дно) | H2: Цвет | I2: Тип | J2: Артикул | K2: Ед.изм. | L2: Кол-во на 1 эл. | M2: Тип | N2: Артикул | O2: Ед.изм. | P2: Кол-во на 1 эл. | Q2: Тип | R2: Артикул | S2: Ед.изм. | T2: Кол-во на 1 эл. | U2: Тип | V2: Артикул | W2: Ед.изм. | X2: Кол-во на 1 эл. | Y2: Тип | Z2: Артикул | AA2: Ед.изм. | AB2: Кол-во на 1 эл. | AC2: Тип | AD2: Артикул | AE2: Ед.изм. | AF2: Кол-во на 1 эл. | AG2: Тип | AH2: Артикул | AI2: Ед.изм. | AJ2: Кол-во на 1 эл. | AK2: Тип | AL2: Артикул | AM2: Ед.изм. | AN2: Кол-во на 1 эл. | AO2: Тип | AP2: Артикул | AQ2: Ед.изм. | AR2: Кол-во на 1 эл. | AS2: Тип | AT2: Артикул | AU2: Ед.изм. | AV2: Кол-во на 1 эл. | AW2: Тип | AX2: Артикул | AY2: Ед.изм. | AZ2: Кол-во на 1 эл. | BA2: Тип | BB2: Артикул | BC2: Ед.изм. | BD2: Кол-во на 1 эл. | BE2: Тип | BF2: Артикул | BG2: Ед.изм. | BH2: Кол-во на 1 эл. | BI2: Тип | BJ2: Артикул | BK2: Ед.изм. | BL2: Кол-во на 1 эл. | BM2: Тип | BN2: Артикул | BO2: Ед.изм. | BP2: Кол-во на 1 эл. | BQ2: Тип | BR2: Артикул | BS2: Ед.изм. | BT2: Кол-во на 1 эл. | BU2: Тип | BV2: Артикул | BW2: Ед.изм. | BX2: Кол-во на 1 эл.
A3: --- | B3: --- | C3: --- | E3: --- | F3: --- | G3: --- | H3: --- | I3: --- | J3: --- | K3: --- | L3: --- | M3: --- | N3: --- | O3: --- | P3: --- | Q3: --- | R3: --- | S3: --- | T3: --- | U3: --- | V3: --- | W3: --- | X3: --- | Y3: --- | Z3: --- | AA3: --- | AB3: --- | AC3: --- | AD3: --- | AE3: --- | AF3: --- | AG3: --- | AH3: --- | AI3: --- | AJ3: --- | AK3: --- | AL3: --- | AM3: --- | AN3: --- | AO3: --- | AP3: --- | AQ3: --- | AR3: --- | AS3: --- | AT3: --- | AU3: --- | AV3: --- | AW3: --- | AX3: --- | AY3: --- | AZ3: --- | BA3: --- | BB3: --- | BC3: --- | BD3: --- | BE3: --- | BF3: --- | BG3: --- | BH3: --- | BI3: --- | BJ3: --- | BK3: --- | BL3: --- | BM3: --- | BN3: --- | BO3: --- | BP3: --- | BQ3: --- | BR3: --- | BS3: --- | BT3: --- | BU3: --- | BV3: --- | BW3: --- | BX3: ---
A4: LKM20020FS | B4: =VLOOKUP(A4,Base!$A:$I,2,FALSE) -> 6246966 | C4: =VLOOKUP(A4,Base!$A:$I,4,FALSE) -> м | D4: 2 | E4: 20х20 | F4: 20 | G4: 20 | H4: Сталь | I4: =CONCATENATE("LKM SV",$G4) -> LKM SV20 | J4: =VLOOKUP(I4,Base!$A:$I,2,FALSE) -> 6247431 | K4: =VLOOKUP(I4,Base!$A:$I,4,FALSE) -> шт. | L4: =IF(F4<40,1,2) -> 1 | M4: 910 SD 6x40 | N4: =VLOOKUP(M4,Base!$A:$I,2,FALSE) -> 2351064 | O4: =VLOOKUP(M4,Base!$A:$I,4,FALSE) -> шт. | P4: 6 | Q4: --- | R4: --- | S4: --- | T4: --- | U4: --- | V4: --- | W4: --- | X4: --- | Y4: --- | Z4: --- | AA4: --- | AB4: --- | AC4: --- | AD4: --- | AE4: --- | AF4: --- | AG4: --- | AH4: --- | AI4: --- | AJ4: --- | AK4: --- | AL4: --- | AM4: --- | AN4: --- | AO4: --- | AP4: --- | AQ4: --- | AR4: --- | AS4: --- | AT4: --- | AU4: --- | AV4: --- | AW4: --- | AX4: --- | AY4: --- | AZ4: --- | BA4: --- | BB4: --- | BC4: --- | BD4: --- | BE4: --- | BF4: --- | BG4: --- | BH4: --- | BI4: --- | BJ4: --- | BK4: --- | BL4: --- | BM4: --- | BN4: --- | BO4: --- | BP4: --- | BQ4: =CONCATENATE("KSR",$F4,IF($G4<100,"0",""),$G4) -> KSR20020 | BR4: =VLOOKUP(BQ4,Base!$A:$I,2,FALSE) -> 6249842 | BS4: =VLOOKUP(BQ4,Base!$A:$I,4,FALSE) -> шт. | BT4: 1 | BU4: --- | BV4: --- | BW4: --- | BX4: ---
A5: LKM20020RW | B5: =VLOOKUP(A5,Base!$A:$I,2,FALSE) -> 6248462 | C5: =VLOOKUP(A5,Base!$A:$I,4,FALSE) -> м | D5: 2 | E5: 20х20 | F5: 20 | G5: 20 | H5: Белый | I5: LKM SV20 | J5: =VLOOKUP(I5,Base!$A:$I,2,FALSE) -> 6247431 | K5: =VLOOKUP(I5,Base!$A:$I,4,FALSE) -> шт. | L5: 1 | M5: 910 SD 6x40 | N5: =VLOOKUP(M5,Base!$A:$I,2,FALSE) -> 2351064 | O5: =VLOOKUP(M5,Base!$A:$I,4,FALSE) -> шт. | P5: 6 | Q5: --- | R5: --- | S5: --- | T5: --- | U5: --- | V5: --- | W5: --- | X5: --- | Y5: --- | Z5: --- | AA5: --- | AB5: --- | AC5: --- | AD5: --- | AE5: --- | AF5: --- | AG5: --- | AH5: --- | AI5: --- | AJ5: --- | AK5: --- | AL5: --- | AM5: --- | AN5: --- | AO5: --- | AP5: --- | AQ5: --- | AR5: --- | AS5: --- | AT5: --- | AU5: --- | AV5: --- | AW5: --- | AX5: --- | AY5: --- | AZ5: --- | BA5: --- | BB5: --- | BC5: --- | BD5: --- | BE5: --- | BF5: --- | BG5: --- | BH5: --- | BI5: --- | BJ5: --- | BK5: --- | BL5: --- | BM5: --- | BN5: --- | BO5: --- | BP5: --- | BQ5: KSR20020 | BR5: =VLOOKUP(BQ5,Base!$A:$I,2,FALSE) -> 6249842 | BS5: =VLOOKUP(BQ5,Base!$A:$I,4,FALSE) -> шт. | BT5: 1 | BU5: --- | BV5: --- | BW5: --- | BX5: ---
A6: LKM20030FS | B6: =VLOOKUP(A6,Base!$A:$I,2,FALSE) -> 6246974 | C6: =VLOOKUP(A6,Base!$A:$I,4,FALSE) -> м | D6: 2 | E6: 20х30 | F6: 20 | G6: 30 | H6: Сталь | I6: LKM SV30 | J6: =VLOOKUP(I6,Base!$A:$I,2,FALSE) -> 6247434 | K6: =VLOOKUP(I6,Base!$A:$I,4,FALSE) -> шт. | L6: 1 | M6: 910 SD 6x40 | N6: =VLOOKUP(M6,Base!$A:$I,2,FALSE) -> 2351064 | O6: =VLOOKUP(M6,Base!$A:$I,4,FALSE) -> шт. | P6: 6 | Q6: --- | R6: --- | S6: --- | T6: --- | U6: --- | V6: --- | W6: --- | X6: --- | Y6: --- | Z6: --- | AA6: --- | AB6: --- | AC6: --- | AD6: --- | AE6: --- | AF6: --- | AG6: --- | AH6: --- | AI6: --- | AJ6: --- | AK6: --- | AL6: --- | AM6: --- | AN6: --- | AO6: --- | AP6: --- | AQ6: --- | AR6: --- | AS6: --- | AT6: --- | AU6: --- | AV6: --- | AW6: --- | AX6: --- | AY6: --- | AZ6: --- | BA6: --- | BB6: --- | BC6: --- | BD6: --- | BE6: --- | BF6: --- | BG6: --- | BH6: --- | BI6: --- | BJ6: --- | BK6: --- | BL6: --- | BM6: --- | BN6: --- | BO6: --- | BP6: --- | BQ6: KSR20030 | BR6: =VLOOKUP(BQ6,Base!$A:$I,2,FALSE) -> 6249844 | BS6: =VLOOKUP(BQ6,Base!$A:$I,4,FALSE) -> шт. | BT6: 1 | BU6: --- | BV6: --- | BW6: --- | BX6: ---
A7: LKM20030RW | B7: =VLOOKUP(A7,Base!$A:$I,2,FALSE) -> 6248470 | C7: =VLOOKUP(A7,Base!$A:$I,4,FALSE) -> м | D7: 2 | E7: 20х30 | F7: 20 | G7: 30 | H7: Белый | I7: LKM SV30 | J7: =VLOOKUP(I7,Base!$A:$I,2,FALSE) -> 6247434 | K7: =VLOOKUP(I7,Base!$A:$I,4,FALSE) -> шт. | L7: 1 | M7: 910 SD 6x40 | N7: =VLOOKUP(M7,Base!$A:$I,2,FALSE) -> 2351064 | O7: =VLOOKUP(M7,Base!$A:$I,4,FALSE) -> шт. | P7: 6 | Q7: --- | R7: --- | S7: --- | T7: --- | U7: --- | V7: --- | W7: --- | X7: --- | Y7: --- | Z7: --- | AA7: --- | AB7: --- | AC7: --- | AD7: --- | AE7: --- | AF7: --- | AG7: --- | AH7: --- | AI7: --- | AJ7: --- | AK7: --- | AL7: --- | AM7: --- | AN7: --- | AO7: --- | AP7: --- | AQ7: --- | AR7: --- | AS7: --- | AT7: --- | AU7: --- | AV7: --- | AW7: --- | AX7: --- | AY7: --- | AZ7: --- | BA7: --- | BB7: --- | BC7: --- | BD7: --- | BE7: --- | BF7: --- | BG7: --- | BH7: --- | BI7: --- | BJ7: --- | BK7: --- | BL7: --- | BM7: --- | BN7: --- | BO7: --- | BP7: --- | BQ7: KSR20030 | BR7: =VLOOKUP(BQ7,Base!$A:$I,2,FALSE) -> 6249844 | BS7: =VLOOKUP(BQ7,Base!$A:$I,4,FALSE) -> шт. | BT7: 1 | BU7: --- | BV7: --- | BW7: --- | BX7: ---
A8: LKM30030FS | B8: =VLOOKUP(A8,Base!$A:$I,2,FALSE) -> 6246985 | C8: =VLOOKUP(A8,Base!$A:$I,4,FALSE) -> м | D8: 2 | E8: 30х30 | F8: 30 | G8: 30 | H8: Сталь | I8: LKM SV30 | J8: =VLOOKUP(I8,Base!$A:$I,2,FALSE) -> 6247434 | K8: =VLOOKUP(I8,Base!$A:$I,4,FALSE) -> шт. | L8: 1 | M8: 910 SD 6x40 | N8: =VLOOKUP(M8,Base!$A:$I,2,FALSE) -> 2351064 | O8: =VLOOKUP(M8,Base!$A:$I,4,FALSE) -> шт. | P8: 6 | Q8: --- | R8: --- | S8: --- | T8: --- | U8: --- | V8: --- | W8: --- | X8: --- | Y8: --- | Z8: --- | AA8: --- | AB8: --- | AC8: --- | AD8: --- | AE8: --- | AF8: --- | AG8: --- | AH8: --- | AI8: --- | AJ8: --- | AK8: --- | AL8: --- | AM8: --- | AN8: --- | AO8: --- | AP8: --- | AQ8: --- | AR8: --- | AS8: --- | AT8: --- | AU8: --- | AV8: --- | AW8: --- | AX8: --- | AY8: --- | AZ8: --- | BA8: --- | BB8: --- | BC8: --- | BD8: --- | BE8: --- | BF8: --- | BG8: --- | BH8: --- | BI8: --- | BJ8: --- | BK8: --- | BL8: --- | BM8: --- | BN8: --- | BO8: --- | BP8: --- | BQ8: KSR30030 | BR8: =VLOOKUP(BQ8,Base!$A:$I,2,FALSE) -> 6249847 | BS8: =VLOOKUP(BQ8,Base!$A:$I,4,FALSE) -> шт. | BT8: 1 | BU8: --- | BV8: --- | BW8: --- | BX8: ---
A9: LKM30030RW | B9: =VLOOKUP(A9,Base!$A:$I,2,FALSE) -> 6248489 | C9: =VLOOKUP(A9,Base!$A:$I,4,FALSE) -> м | D9: 2 | E9: 30х30 | F9: 30 | G9: 30 | H9: Белый | I9: LKM SV30 | J9: =VLOOKUP(I9,Base!$A:$I,2,FALSE) -> 6247434 | K9: =VLOOKUP(I9,Base!$A:$I,4,FALSE) -> шт. | L9: 1 | M9: 910 SD 6x40 | N9: =VLOOKUP(M9,Base!$A:$I,2,FALSE) -> 2351064 | O9: =VLOOKUP(M9,Base!$A:$I,4,FALSE) -> шт. | P9: 6 | Q9: --- | R9: --- | S9: --- | T9: --- | U9: --- | V9: --- | W9: --- | X9: --- | Y9: --- | Z9: --- | AA9: --- | AB9: --- | AC9: --- | AD9: --- | AE9: --- | AF9: --- | AG9: --- | AH9: --- | AI9: --- | AJ9: --- | AK9: --- | AL9: --- | AM9: --- | AN9: --- | AO9: --- | AP9: --- | AQ9: --- | AR9: --- | AS9: --- | AT9: --- | AU9: --- | AV9: --- | AW9: --- | AX9: --- | AY9: --- | AZ9: --- | BA9: --- | BB9: --- | BC9: --- | BD9: --- | BE9: --- | BF9: --- | BG9: --- | BH9: --- | BI9: --- | BJ9: --- | BK9: --- | BL9: --- | BM9: --- | BN9: --- | BO9: --- | BP9: --- | BQ9: KSR30030 | BR9: =VLOOKUP(BQ9,Base!$A:$I,2,FALSE) -> 6249847 | BS9: =VLOOKUP(BQ9,Base!$A:$I,4,FALSE) -> шт. | BT9: 1 | BU9: --- | BV9: --- | BW9: --- | BX9: ---
A10: LKM40040FS | B10: =VLOOKUP(A10,Base!$A:$I,2,FALSE) -> 6246990 | C10: =VLOOKUP(A10,Base!$A:$I,4,FALSE) -> м | D10: 2 | E10: 40х40 | F10: 40 | G10: 40 | H10: Сталь | I10: =CONCATENATE("LKM SV",$F10) -> LKM SV40 | J10: =VLOOKUP(I10,Base!$A:$I,2,FALSE) -> 6247458 | K10: =VLOOKUP(I10,Base!$A:$I,4,FALSE) -> шт. | L10: 2 | M10: 910 SD 6x40 | N10: =VLOOKUP(M10,Base!$A:$I,2,FALSE) -> 2351064 | O10: =VLOOKUP(M10,Base!$A:$I,4,FALSE) -> шт. | P10: 6 | Q10: =CONCATENATE("LKM I",$F10,IF($G10<100,"0",""),$G10,IF(H10="Сталь","FS","RW")) -> LKM I40040FS | R10: =VLOOKUP(Q10,Base!$A:$I,2,FALSE) -> 6247652 | S10: =VLOOKUP(Q10,Base!$A:$I,4,FALSE) -> шт. | T10: 1 | U10: =CONCATENATE("LKM SV",$F10) -> LKM SV40 | V10: =VLOOKUP(U10,Base!$A:$I,2,FALSE) -> 6247458 | W10: =VLOOKUP(U10,Base!$A:$I,4,FALSE) -> шт. | X10: 4 | Y10: 910 SD 6x40 | Z10: =VLOOKUP(Y10,Base!$A:$I,2,FALSE) -> 2351064 | AA10: =VLOOKUP(Y10,Base!$A:$I,4,FALSE) -> шт. | AB10: 2 | AC10: =CONCATENATE("LKM A",$F10,IF($G10<100,"0",""),$G10,IF(I10="Сталь","FS","RW")) -> LKM A40040RW | AD10: =VLOOKUP(AC10,Base!$A:$I,2,FALSE) -> 6249086 | AE10: =VLOOKUP(AC10,Base!$A:$I,4,FALSE) -> шт. | AF10: 1 | AG10: =CONCATENATE("LKM SV",$F10) -> LKM SV40 | AH10: =VLOOKUP(AG10,Base!$A:$I,2,FALSE) -> 6247458 | AI10: =VLOOKUP(AG10,Base!$A:$I,4,FALSE) -> шт. | AJ10: 4 | AK10: 910 SD 6x40 | AL10: =VLOOKUP(AK10,Base!$A:$I,2,FALSE) -> 2351064 | AM10: =VLOOKUP(AK10,Base!$A:$I,4,FALSE) -> шт. | AN10: 2 | AO10: =CONCATENATE("LKM T",$F10,IF($G10<100,"0",""),$G10,IF(BQ10="Сталь","FS","RW")) -> LKM T40040RW | AP10: =VLOOKUP(AO10,Base!$A:$I,2,FALSE) -> 6249256 | AQ10: =VLOOKUP(AO10,Base!$A:$I,4,FALSE) -> шт. | AR10: 1 | AS10: =CONCATENATE("LKM SV",$F10) -> LKM SV40 | AT10: =VLOOKUP(AS10,Base!$A:$I,2,FALSE) -> 6247458 | AU10: =VLOOKUP(AS10,Base!$A:$I,4,FALSE) -> шт. | AV10: 6 | AW10: 910 SD 6x40 | AX10: =VLOOKUP(AW10,Base!$A:$I,2,FALSE) -> 2351064 | AY10: =VLOOKUP(AW10,Base!$A:$I,4,FALSE) -> шт. | AZ10: 3 | BA10: =CONCATENATE("LKM F",$F10,IF($G10<100,"0",""),$G10,IF(Q10="Сталь","FS","RW")) -> LKM F40040RW | BB10: =VLOOKUP(BA10,Base!$A:$I,2,FALSE) -> 6248993 | BC10: =VLOOKUP(BA10,Base!$A:$I,4,FALSE) -> шт. | BD10: 1 | BE10: =CONCATENATE("LKM SV",$F10) -> LKM SV40 | BF10: =VLOOKUP(BE10,Base!$A:$I,2,FALSE) -> 6247458 | BG10: =VLOOKUP(BE10,Base!$A:$I,4,FALSE) -> шт. | BH10: 4 | BI10: 910 SD 6x40 | BJ10: =VLOOKUP(BI10,Base!$A:$I,2,FALSE) -> 2351064 | BK10: =VLOOKUP(BI10,Base!$A:$I,4,FALSE) -> шт. | BL10: 2 | BM10: =CONCATENATE("LKM E",$F10,IF($G10<100,"0",""),$G10,IF(AC10="Сталь","FS","RW")) -> LKM E40040RW | BN10: =VLOOKUP(BM10,Base!$A:$I,2,FALSE) -> 6249418 | BO10: =VLOOKUP(BM10,Base!$A:$I,4,FALSE) -> шт. | BP10: 1 | BQ10: KSR40040 | BR10: =VLOOKUP(BQ10,Base!$A:$I,2,FALSE) -> 6249846 | BS10: =VLOOKUP(BQ10,Base!$A:$I,4,FALSE) -> шт. | BT10: 1 | BU10: --- | BV10: --- | BW10: --- | BX10: ---
A11: LKM40040RW | B11: =VLOOKUP(A11,Base!$A:$I,2,FALSE) -> 6248497 | C11: =VLOOKUP(A11,Base!$A:$I,4,FALSE) -> м | D11: 2 | E11: 40х40 | F11: 40 | G11: 40 | H11: Белый | I11: LKM SV40 | J11: =VLOOKUP(I11,Base!$A:$I,2,FALSE) -> 6247458 | K11: =VLOOKUP(I11,Base!$A:$I,4,FALSE) -> шт. | L11: 2 | M11: 910 SD 6x40 | N11: =VLOOKUP(M11,Base!$A:$I,2,FALSE) -> 2351064 | O11: =VLOOKUP(M11,Base!$A:$I,4,FALSE) -> шт. | P11: 6 | Q11: LKM I40040RW | R11: =VLOOKUP(Q11,Base!$A:$I,2,FALSE) -> 6249167 | S11: =VLOOKUP(Q11,Base!$A:$I,4,FALSE) -> шт. | T11: 1 | U11: LKM SV40 | V11: =VLOOKUP(U11,Base!$A:$I,2,FALSE) -> 6247458 | W11: =VLOOKUP(U11,Base!$A:$I,4,FALSE) -> шт. | X11: 4 | Y11: 910 SD 6x40 | Z11: =VLOOKUP(Y11,Base!$A:$I,2,FALSE) -> 2351064 | AA11: =VLOOKUP(Y11,Base!$A:$I,4,FALSE) -> шт. | AB11: 2 | AC11: LKM A40040RW | AD11: =VLOOKUP(AC11,Base!$A:$I,2,FALSE) -> 6249086 | AE11: =VLOOKUP(AC11,Base!$A:$I,4,FALSE) -> шт. | AF11: 1 | AG11: LKM SV40 | AH11: =VLOOKUP(AG11,Base!$A:$I,2,FALSE) -> 6247458 | AI11: =VLOOKUP(AG11,Base!$A:$I,4,FALSE) -> шт. | AJ11: 4 | AK11: 910 SD 6x40 | AL11: =VLOOKUP(AK11,Base!$A:$I,2,FALSE) -> 2351064 | AM11: =VLOOKUP(AK11,Base!$A:$I,4,FALSE) -> шт. | AN11: 2 | AO11: LKM T40040RW | AP11: =VLOOKUP(AO11,Base!$A:$I,2,FALSE) -> 6249256 | AQ11: =VLOOKUP(AO11,Base!$A:$I,4,FALSE) -> шт. | AR11: 1 | AS11: LKM SV40 | AT11: =VLOOKUP(AS11,Base!$A:$I,2,FALSE) -> 6247458 | AU11: =VLOOKUP(AS11,Base!$A:$I,4,FALSE) -> шт. | AV11: 6 | AW11: 910 SD 6x40 | AX11: =VLOOKUP(AW11,Base!$A:$I,2,FALSE) -> 2351064 | AY11: =VLOOKUP(AW11,Base!$A:$I,4,FALSE) -> шт. | AZ11: 3 | BA11: LKM F40040RW | BB11: =VLOOKUP(BA11,Base!$A:$I,2,FALSE) -> 6248993 | BC11: =VLOOKUP(BA11,Base!$A:$I,4,FALSE) -> шт. | BD11: 1 | BE11: LKM SV40 | BF11: =VLOOKUP(BE11,Base!$A:$I,2,FALSE) -> 6247458 | BG11: =VLOOKUP(BE11,Base!$A:$I,4,FALSE) -> шт. | BH11: 4 | BI11: 910 SD 6x40 | BJ11: =VLOOKUP(BI11,Base!$A:$I,2,FALSE) -> 2351064 | BK11: =VLOOKUP(BI11,Base!$A:$I,4,FALSE) -> шт. | BL11: 2 | BM11: LKM E40040RW | BN11: =VLOOKUP(BM11,Base!$A:$I,2,FALSE) -> 6249418 | BO11: =VLOOKUP(BM11,Base!$A:$I,4,FALSE) -> шт. | BP11: 1 | BQ11: KSR40040 | BR11: =VLOOKUP(BQ11,Base!$A:$I,2,FALSE) -> 6249846 | BS11: =VLOOKUP(BQ11,Base!$A:$I,4,FALSE) -> шт. | BT11: 1 | BU11: --- | BV11: --- | BW11: --- | BX11: ---
A12: LKM40060FS | B12: =VLOOKUP(A12,Base!$A:$I,2,FALSE) -> 6247016 | C12: =VLOOKUP(A12,Base!$A:$I,4,FALSE) -> м | D12: 2 | E12: 40х60 | F12: 40 | G12: 60 | H12: Сталь | I12: LKM SV40 | J12: =VLOOKUP(I12,Base!$A:$I,2,FALSE) -> 6247458 | K12: =VLOOKUP(I12,Base!$A:$I,4,FALSE) -> шт. | L12: 2 | M12: 910 SD 6x40 | N12: =VLOOKUP(M12,Base!$A:$I,2,FALSE) -> 2351064 | O12: =VLOOKUP(M12,Base!$A:$I,4,FALSE) -> шт. | P12: 6 | Q12: LKM I40060FS | R12: =VLOOKUP(Q12,Base!$A:$I,2,FALSE) -> 6247660 | S12: =VLOOKUP(Q12,Base!$A:$I,4,FALSE) -> шт. | T12: 1 | U12: LKM SV40 | V12: =VLOOKUP(U12,Base!$A:$I,2,FALSE) -> 6247458 | W12: =VLOOKUP(U12,Base!$A:$I,4,FALSE) -> шт. | X12: 4 | Y12: 910 SD 6x40 | Z12: =VLOOKUP(Y12,Base!$A:$I,2,FALSE) -> 2351064 | AA12: =VLOOKUP(Y12,Base!$A:$I,4,FALSE) -> шт. | AB12: 2 | AC12: LKM A40060RW | AD12: =VLOOKUP(AC12,Base!$A:$I,2,FALSE) -> 6249094 | AE12: =VLOOKUP(AC12,Base!$A:$I,4,FALSE) -> шт. | AF12: 1 | AG12: LKM SV40 | AH12: =VLOOKUP(AG12,Base!$A:$I,2,FALSE) -> 6247458 | AI12: =VLOOKUP(AG12,Base!$A:$I,4,FALSE) -> шт. | AJ12: 4 | AK12: 910 SD 6x40 | AL12: =VLOOKUP(AK12,Base!$A:$I,2,FALSE) -> 2351064 | AM12: =VLOOKUP(AK12,Base!$A:$I,4,FALSE) -> шт. | AN12: 2 | AO12: LKM T40060RW | AP12: =VLOOKUP(AO12,Base!$A:$I,2,FALSE) -> 6249264 | AQ12: =VLOOKUP(AO12,Base!$A:$I,4,FALSE) -> шт. | AR12: 1 | AS12: LKM SV40 | AT12: =VLOOKUP(AS12,Base!$A:$I,2,FALSE) -> 6247458 | AU12: =VLOOKUP(AS12,Base!$A:$I,4,FALSE) -> шт. | AV12: 6 | AW12: 910 SD 6x40 | AX12: =VLOOKUP(AW12,Base!$A:$I,2,FALSE) -> 2351064 | AY12: =VLOOKUP(AW12,Base!$A:$I,4,FALSE) -> шт. | AZ12: 3 | BA12: LKM F40060RW | BB12: =VLOOKUP(BA12,Base!$A:$I,2,FALSE) -> 6249000 | BC12: =VLOOKUP(BA12,Base!$A:$I,4,FALSE) -> шт. | BD12: 1 | BE12: LKM SV40 | BF12: =VLOOKUP(BE12,Base!$A:$I,2,FALSE) -> 6247458 | BG12: =VLOOKUP(BE12,Base!$A:$I,4,FALSE) -> шт. | BH12: 4 | BI12: 910 SD 6x40 | BJ12: =VLOOKUP(BI12,Base!$A:$I,2,FALSE) -> 2351064 | BK12: =VLOOKUP(BI12,Base!$A:$I,4,FALSE) -> шт. | BL12: 2 | BM12: LKM E40060RW | BN12: =VLOOKUP(BM12,Base!$A:$I,2,FALSE) -> 6249426 | BO12: =VLOOKUP(BM12,Base!$A:$I,4,FALSE) -> шт. | BP12: 1 | BQ12: KSR40060 | BR12: =VLOOKUP(BQ12,Base!$A:$I,2,FALSE) -> 6249848 | BS12: =VLOOKUP(BQ12,Base!$A:$I,4,FALSE) -> шт. | BT12: 1 | BU12: --- | BV12: --- | BW12: --- | BX12: ---
A13: LKM40060RW | B13: =VLOOKUP(A13,Base!$A:$I,2,FALSE) -> 6248519 | C13: =VLOOKUP(A13,Base!$A:$I,4,FALSE) -> м | D13: 2 | E13: 40х60 | F13: 40 | G13: 60 | H13: Белый | I13: LKM SV40 | J13: =VLOOKUP(I13,Base!$A:$I,2,FALSE) -> 6247458 | K13: =VLOOKUP(I13,Base!$A:$I,4,FALSE) -> шт. | L13: 2 | M13: 910 SD 6x40 | N13: =VLOOKUP(M13,Base!$A:$I,2,FALSE) -> 2351064 | O13: =VLOOKUP(M13,Base!$A:$I,4,FALSE) -> шт. | P13: 6 | Q13: LKM I40060RW | R13: =VLOOKUP(Q13,Base!$A:$I,2,FALSE) -> 6249175 | S13: =VLOOKUP(Q13,Base!$A:$I,4,FALSE) -> шт. | T13: 1 | U13: LKM SV40 | V13: =VLOOKUP(U13,Base!$A:$I,2,FALSE) -> 6247458 | W13: =VLOOKUP(U13,Base!$A:$I,4,FALSE) -> шт. | X13: 4 | Y13: 910 SD 6x40 | Z13: =VLOOKUP(Y13,Base!$A:$I,2,FALSE) -> 2351064 | AA13: =VLOOKUP(Y13,Base!$A:$I,4,FALSE) -> шт. | AB13: 2 | AC13: LKM A40060RW | AD13: =VLOOKUP(AC13,Base!$A:$I,2,FALSE) -> 6249094 | AE13: =VLOOKUP(AC13,Base!$A:$I,4,FALSE) -> шт. | AF13: 1 | AG13: LKM SV40 | AH13: =VLOOKUP(AG13,Base!$A:$I,2,FALSE) -> 6247458 | AI13: =VLOOKUP(AG13,Base!$A:$I,4,FALSE) -> шт. | AJ13: 4 | AK13: 910 SD 6x40 | AL13: =VLOOKUP(AK13,Base!$A:$I,2,FALSE) -> 2351064 | AM13: =VLOOKUP(AK13,Base!$A:$I,4,FALSE) -> шт. | AN13: 2 | AO13: LKM T40060RW | AP13: =VLOOKUP(AO13,Base!$A:$I,2,FALSE) -> 6249264 | AQ13: =VLOOKUP(AO13,Base!$A:$I,4,FALSE) -> шт. | AR13: 1 | AS13: LKM SV40 | AT13: =VLOOKUP(AS13,Base!$A:$I,2,FALSE) -> 6247458 | AU13: =VLOOKUP(AS13,Base!$A:$I,4,FALSE) -> шт. | AV13: 6 | AW13: 910 SD 6x40 | AX13: =VLOOKUP(AW13,Base!$A:$I,2,FALSE) -> 2351064 | AY13: =VLOOKUP(AW13,Base!$A:$I,4,FALSE) -> шт. | AZ13: 3 | BA13: LKM F40060RW | BB13: =VLOOKUP(BA13,Base!$A:$I,2,FALSE) -> 6249000 | BC13: =VLOOKUP(BA13,Base!$A:$I,4,FALSE) -> шт. | BD13: 1 | BE13: LKM SV40 | BF13: =VLOOKUP(BE13,Base!$A:$I,2,FALSE) -> 6247458 | BG13: =VLOOKUP(BE13,Base!$A:$I,4,FALSE) -> шт. | BH13: 4 | BI13: 910 SD 6x40 | BJ13: =VLOOKUP(BI13,Base!$A:$I,2,FALSE) -> 2351064 | BK13: =VLOOKUP(BI13,Base!$A:$I,4,FALSE) -> шт. | BL13: 2 | BM13: LKM E40060RW | BN13: =VLOOKUP(BM13,Base!$A:$I,2,FALSE) -> 6249426 | BO13: =VLOOKUP(BM13,Base!$A:$I,4,FALSE) -> шт. | BP13: 1 | BQ13: KSR40060 | BR13: =VLOOKUP(BQ13,Base!$A:$I,2,FALSE) -> 6249848 | BS13: =VLOOKUP(BQ13,Base!$A:$I,4,FALSE) -> шт. | BT13: 1 | BU13: --- | BV13: --- | BW13: --- | BX13: ---
A14: LKM60060FS | B14: =VLOOKUP(A14,Base!$A:$I,2,FALSE) -> 6247091 | C14: =VLOOKUP(A14,Base!$A:$I,4,FALSE) -> м | D14: 2 | E14: 60х60 | F14: 60 | G14: 60 | H14: Сталь | I14: LKM SV60 | J14: =VLOOKUP(I14,Base!$A:$I,2,FALSE) -> 6247466 | K14: =VLOOKUP(I14,Base!$A:$I,4,FALSE) -> шт. | L14: 2 | M14: 910 SD 6x40 | N14: =VLOOKUP(M14,Base!$A:$I,2,FALSE) -> 2351064 | O14: =VLOOKUP(M14,Base!$A:$I,4,FALSE) -> шт. | P14: 6 | Q14: LKM I60060FS | R14: =VLOOKUP(Q14,Base!$A:$I,2,FALSE) -> 6248128 | S14: =VLOOKUP(Q14,Base!$A:$I,4,FALSE) -> шт. | T14: 1 | U14: LKM SV60 | V14: =VLOOKUP(U14,Base!$A:$I,2,FALSE) -> 6247466 | W14: =VLOOKUP(U14,Base!$A:$I,4,FALSE) -> шт. | X14: 4 | Y14: 910 SD 6x40 | Z14: =VLOOKUP(Y14,Base!$A:$I,2,FALSE) -> 2351064 | AA14: =VLOOKUP(Y14,Base!$A:$I,4,FALSE) -> шт. | AB14: 2 | AC14: LKM A60060RW | AD14: =VLOOKUP(AC14,Base!$A:$I,2,FALSE) -> 6249558 | AE14: =VLOOKUP(AC14,Base!$A:$I,4,FALSE) -> шт. | AF14: 1 | AG14: LKM SV60 | AH14: =VLOOKUP(AG14,Base!$A:$I,2,FALSE) -> 6247466 | AI14: =VLOOKUP(AG14,Base!$A:$I,4,FALSE) -> шт. | AJ14: 4 | AK14: 910 SD 6x40 | AL14: =VLOOKUP(AK14,Base!$A:$I,2,FALSE) -> 2351064 | AM14: =VLOOKUP(AK14,Base!$A:$I,4,FALSE) -> шт. | AN14: 2 | AO14: LKM T60060RW | AP14: =VLOOKUP(AO14,Base!$A:$I,2,FALSE) -> 6249671 | AQ14: =VLOOKUP(AO14,Base!$A:$I,4,FALSE) -> шт. | AR14: 1 | AS14: LKM SV60 | AT14: =VLOOKUP(AS14,Base!$A:$I,2,FALSE) -> 6247466 | AU14: =VLOOKUP(AS14,Base!$A:$I,4,FALSE) -> шт. | AV14: 6 | AW14: 910 SD 6x40 | AX14: =VLOOKUP(AW14,Base!$A:$I,2,FALSE) -> 2351064 | AY14: =VLOOKUP(AW14,Base!$A:$I,4,FALSE) -> шт. | AZ14: 3 | BA14: LKM F60060RW | BB14: =VLOOKUP(BA14,Base!$A:$I,2,FALSE) -> 6249485 | BC14: =VLOOKUP(BA14,Base!$A:$I,4,FALSE) -> шт. | BD14: 1 | BE14: LKM SV60 | BF14: =VLOOKUP(BE14,Base!$A:$I,2,FALSE) -> 6247466 | BG14: =VLOOKUP(BE14,Base!$A:$I,4,FALSE) -> шт. | BH14: 4 | BI14: 910 SD 6x40 | BJ14: =VLOOKUP(BI14,Base!$A:$I,2,FALSE) -> 2351064 | BK14: =VLOOKUP(BI14,Base!$A:$I,4,FALSE) -> шт. | BL14: 2 | BM14: LKM E60060RW | BN14: =VLOOKUP(BM14,Base!$A:$I,2,FALSE) -> 6249795 | BO14: =VLOOKUP(BM14,Base!$A:$I,4,FALSE) -> шт. | BP14: 1 | BQ14: KSR60060 | BR14: =VLOOKUP(BQ14,Base!$A:$I,2,FALSE) -> 6249850 | BS14: =VLOOKUP(BQ14,Base!$A:$I,4,FALSE) -> шт. | BT14: 1 | BU14: =CONCATENATE("LKM TWS",$F14-5) -> LKM TWS55 | BV14: =VLOOKUP(BU14,Base!$A:$I,2,FALSE) -> 6249876 | BW14: =VLOOKUP(BU14,Base!$A:$I,4,FALSE) -> м | BX14: 1
A15: LKM60060RW | B15: =VLOOKUP(A15,Base!$A:$I,2,FALSE) -> 6248608 | C15: =VLOOKUP(A15,Base!$A:$I,4,FALSE) -> м | D15: 2 | E15: 60х60 | F15: 60 | G15: 60 | H15: Белый | I15: LKM SV60 | J15: =VLOOKUP(I15,Base!$A:$I,2,FALSE) -> 6247466 | K15: =VLOOKUP(I15,Base!$A:$I,4,FALSE) -> шт. | L15: 2 | M15: 910 SD 6x40 | N15: =VLOOKUP(M15,Base!$A:$I,2,FALSE) -> 2351064 | O15: =VLOOKUP(M15,Base!$A:$I,4,FALSE) -> шт. | P15: 6 | Q15: LKM I60060RW | R15: =VLOOKUP(Q15,Base!$A:$I,2,FALSE) -> 6249612 | S15: =VLOOKUP(Q15,Base!$A:$I,4,FALSE) -> шт. | T15: 1 | U15: LKM SV60 | V15: =VLOOKUP(U15,Base!$A:$I,2,FALSE) -> 6247466 | W15: =VLOOKUP(U15,Base!$A:$I,4,FALSE) -> шт. | X15: 4 | Y15: 910 SD 6x40 | Z15: =VLOOKUP(Y15,Base!$A:$I,2,FALSE) -> 2351064 | AA15: =VLOOKUP(Y15,Base!$A:$I,4,FALSE) -> шт. | AB15: 2 | AC15: LKM A60060RW | AD15: =VLOOKUP(AC15,Base!$A:$I,2,FALSE) -> 6249558 | AE15: =VLOOKUP(AC15,Base!$A:$I,4,FALSE) -> шт. | AF15: 1 | AG15: LKM SV60 | AH15: =VLOOKUP(AG15,Base!$A:$I,2,FALSE) -> 6247466 | AI15: =VLOOKUP(AG15,Base!$A:$I,4,FALSE) -> шт. | AJ15: 4 | AK15: 910 SD 6x40 | AL15: =VLOOKUP(AK15,Base!$A:$I,2,FALSE) -> 2351064 | AM15: =VLOOKUP(AK15,Base!$A:$I,4,FALSE) -> шт. | AN15: 2 | AO15: LKM T60060RW | AP15: =VLOOKUP(AO15,Base!$A:$I,2,FALSE) -> 6249671 | AQ15: =VLOOKUP(AO15,Base!$A:$I,4,FALSE) -> шт. | AR15: 1 | AS15: LKM SV60 | AT15: =VLOOKUP(AS15,Base!$A:$I,2,FALSE) -> 6247466 | AU15: =VLOOKUP(AS15,Base!$A:$I,4,FALSE) -> шт. | AV15: 6 | AW15: 910 SD 6x40 | AX15: =VLOOKUP(AW15,Base!$A:$I,2,FALSE) -> 2351064 | AY15: =VLOOKUP(AW15,Base!$A:$I,4,FALSE) -> шт. | AZ15: 3 | BA15: LKM F60060RW | BB15: =VLOOKUP(BA15,Base!$A:$I,2,FALSE) -> 6249485 | BC15: =VLOOKUP(BA15,Base!$A:$I,4,FALSE) -> шт. | BD15: 1 | BE15: LKM SV60 | BF15: =VLOOKUP(BE15,Base!$A:$I,2,FALSE) -> 6247466 | BG15: =VLOOKUP(BE15,Base!$A:$I,4,FALSE) -> шт. | BH15: 4 | BI15: 910 SD 6x40 | BJ15: =VLOOKUP(BI15,Base!$A:$I,2,FALSE) -> 2351064 | BK15: =VLOOKUP(BI15,Base!$A:$I,4,FALSE) -> шт. | BL15: 2 | BM15: LKM E60060RW | BN15: =VLOOKUP(BM15,Base!$A:$I,2,FALSE) -> 6249795 | BO15: =VLOOKUP(BM15,Base!$A:$I,4,FALSE) -> шт. | BP15: 1 | BQ15: KSR60060 | BR15: =VLOOKUP(BQ15,Base!$A:$I,2,FALSE) -> 6249850 | BS15: =VLOOKUP(BQ15,Base!$A:$I,4,FALSE) -> шт. | BT15: 1 | BU15: LKM TWS55 | BV15: =VLOOKUP(BU15,Base!$A:$I,2,FALSE) -> 6249876 | BW15: =VLOOKUP(BU15,Base!$A:$I,4,FALSE) -> м | BX15: 1
A16: LKM60100FS | B16: =VLOOKUP(A16,Base!$A:$I,2,FALSE) -> 6247113 | C16: =VLOOKUP(A16,Base!$A:$I,4,FALSE) -> м | D16: 2 | E16: 60х100 | F16: 60 | G16: 100 | H16: Сталь | I16: LKM SV60 | J16: =VLOOKUP(I16,Base!$A:$I,2,FALSE) -> 6247466 | K16: =VLOOKUP(I16,Base!$A:$I,4,FALSE) -> шт. | L16: 2 | M16: 910 SD 6x40 | N16: =VLOOKUP(M16,Base!$A:$I,2,FALSE) -> 2351064 | O16: =VLOOKUP(M16,Base!$A:$I,4,FALSE) -> шт. | P16: 11 | Q16: LKM I60100FS | R16: =VLOOKUP(Q16,Base!$A:$I,2,FALSE) -> 6248144 | S16: =VLOOKUP(Q16,Base!$A:$I,4,FALSE) -> шт. | T16: 1 | U16: LKM SV60 | V16: =VLOOKUP(U16,Base!$A:$I,2,FALSE) -> 6247466 | W16: =VLOOKUP(U16,Base!$A:$I,4,FALSE) -> шт. | X16: 4 | Y16: 910 SD 6x40 | Z16: =VLOOKUP(Y16,Base!$A:$I,2,FALSE) -> 2351064 | AA16: =VLOOKUP(Y16,Base!$A:$I,4,FALSE) -> шт. | AB16: 4 | AC16: LKM A60100RW | AD16: =VLOOKUP(AC16,Base!$A:$I,2,FALSE) -> 6249574 | AE16: =VLOOKUP(AC16,Base!$A:$I,4,FALSE) -> шт. | AF16: 1 | AG16: LKM SV60 | AH16: =VLOOKUP(AG16,Base!$A:$I,2,FALSE) -> 6247466 | AI16: =VLOOKUP(AG16,Base!$A:$I,4,FALSE) -> шт. | AJ16: 4 | AK16: 910 SD 6x40 | AL16: =VLOOKUP(AK16,Base!$A:$I,2,FALSE) -> 2351064 | AM16: =VLOOKUP(AK16,Base!$A:$I,4,FALSE) -> шт. | AN16: 4 | AO16: LKM T60100RW | AP16: =VLOOKUP(AO16,Base!$A:$I,2,FALSE) -> 6249701 | AQ16: =VLOOKUP(AO16,Base!$A:$I,4,FALSE) -> шт. | AR16: 1 | AS16: LKM SV60 | AT16: =VLOOKUP(AS16,Base!$A:$I,2,FALSE) -> 6247466 | AU16: =VLOOKUP(AS16,Base!$A:$I,4,FALSE) -> шт. | AV16: 6 | AW16: 910 SD 6x40 | AX16: =VLOOKUP(AW16,Base!$A:$I,2,FALSE) -> 2351064 | AY16: =VLOOKUP(AW16,Base!$A:$I,4,FALSE) -> шт. | AZ16: 6 | BA16: LKM F60100RW | BB16: =VLOOKUP(BA16,Base!$A:$I,2,FALSE) -> 6249507 | BC16: =VLOOKUP(BA16,Base!$A:$I,4,FALSE) -> шт. | BD16: 1 | BE16: LKM SV60 | BF16: =VLOOKUP(BE16,Base!$A:$I,2,FALSE) -> 6247466 | BG16: =VLOOKUP(BE16,Base!$A:$I,4,FALSE) -> шт. | BH16: 4 | BI16: 910 SD 6x40 | BJ16: =VLOOKUP(BI16,Base!$A:$I,2,FALSE) -> 2351064 | BK16: =VLOOKUP(BI16,Base!$A:$I,4,FALSE) -> шт. | BL16: 4 | BM16: LKM E60100RW | BN16: =VLOOKUP(BM16,Base!$A:$I,2,FALSE) -> 6249817 | BO16: =VLOOKUP(BM16,Base!$A:$I,4,FALSE) -> шт. | BP16: 1 | BQ16: KSR60100 | BR16: =VLOOKUP(BQ16,Base!$A:$I,2,FALSE) -> 6249852 | BS16: =VLOOKUP(BQ16,Base!$A:$I,4,FALSE) -> шт. | BT16: 1 | BU16: LKM TWS55 | BV16: =VLOOKUP(BU16,Base!$A:$I,2,FALSE) -> 6249876 | BW16: =VLOOKUP(BU16,Base!$A:$I,4,FALSE) -> м | BX16: 1
A17: LKM60100RW | B17: =VLOOKUP(A17,Base!$A:$I,2,FALSE) -> 6248624 | C17: =VLOOKUP(A17,Base!$A:$I,4,FALSE) -> м | D17: 2 | E17: 60х100 | F17: 60 | G17: 100 | H17: Белый | I17: LKM SV60 | J17: =VLOOKUP(I17,Base!$A:$I,2,FALSE) -> 6247466 | K17: =VLOOKUP(I17,Base!$A:$I,4,FALSE) -> шт. | L17: 2 | M17: 910 SD 6x40 | N17: =VLOOKUP(M17,Base!$A:$I,2,FALSE) -> 2351064 | O17: =VLOOKUP(M17,Base!$A:$I,4,FALSE) -> шт. | P17: 11 | Q17: LKM I60100RW | R17: =VLOOKUP(Q17,Base!$A:$I,2,FALSE) -> 6249639 | S17: =VLOOKUP(Q17,Base!$A:$I,4,FALSE) -> шт. | T17: 1 | U17: LKM SV60 | V17: =VLOOKUP(U17,Base!$A:$I,2,FALSE) -> 6247466 | W17: =VLOOKUP(U17,Base!$A:$I,4,FALSE) -> шт. | X17: 4 | Y17: 910 SD 6x40 | Z17: =VLOOKUP(Y17,Base!$A:$I,2,FALSE) -> 2351064 | AA17: =VLOOKUP(Y17,Base!$A:$I,4,FALSE) -> шт. | AB17: 4 | AC17: LKM A60100RW | AD17: =VLOOKUP(AC17,Base!$A:$I,2,FALSE) -> 6249574 | AE17: =VLOOKUP(AC17,Base!$A:$I,4,FALSE) -> шт. | AF17: 1 | AG17: LKM SV60 | AH17: =VLOOKUP(AG17,Base!$A:$I,2,FALSE) -> 6247466 | AI17: =VLOOKUP(AG17,Base!$A:$I,4,FALSE) -> шт. | AJ17: 4 | AK17: 910 SD 6x40 | AL17: =VLOOKUP(AK17,Base!$A:$I,2,FALSE) -> 2351064 | AM17: =VLOOKUP(AK17,Base!$A:$I,4,FALSE) -> шт. | AN17: 4 | AO17: LKM T60100RW | AP17: =VLOOKUP(AO17,Base!$A:$I,2,FALSE) -> 6249701 | AQ17: =VLOOKUP(AO17,Base!$A:$I,4,FALSE) -> шт. | AR17: 1 | AS17: LKM SV60 | AT17: =VLOOKUP(AS17,Base!$A:$I,2,FALSE) -> 6247466 | AU17: =VLOOKUP(AS17,Base!$A:$I,4,FALSE) -> шт. | AV17: 6 | AW17: 910 SD 6x40 | AX17: =VLOOKUP(AW17,Base!$A:$I,2,FALSE) -> 2351064 | AY17: =VLOOKUP(AW17,Base!$A:$I,4,FALSE) -> шт. | AZ17: 6 | BA17: LKM F60100RW | BB17: =VLOOKUP(BA17,Base!$A:$I,2,FALSE) -> 6249507 | BC17: =VLOOKUP(BA17,Base!$A:$I,4,FALSE) -> шт. | BD17: 1 | BE17: LKM SV60 | BF17: =VLOOKUP(BE17,Base!$A:$I,2,FALSE) -> 6247466 | BG17: =VLOOKUP(BE17,Base!$A:$I,4,FALSE) -> шт. | BH17: 4 | BI17: 910 SD 6x40 | BJ17: =VLOOKUP(BI17,Base!$A:$I,2,FALSE) -> 2351064 | BK17: =VLOOKUP(BI17,Base!$A:$I,4,FALSE) -> шт. | BL17: 4 | BM17: LKM E60100RW | BN17: =VLOOKUP(BM17,Base!$A:$I,2,FALSE) -> 6249817 | BO17: =VLOOKUP(BM17,Base!$A:$I,4,FALSE) -> шт. | BP17: 1 | BQ17: KSR60100 | BR17: =VLOOKUP(BQ17,Base!$A:$I,2,FALSE) -> 6249852 | BS17: =VLOOKUP(BQ17,Base!$A:$I,4,FALSE) -> шт. | BT17: 1 | BU17: LKM TWS55 | BV17: =VLOOKUP(BU17,Base!$A:$I,2,FALSE) -> 6249876 | BW17: =VLOOKUP(BU17,Base!$A:$I,4,FALSE) -> м | BX17: 1
A18: LKM60150FS | B18: =VLOOKUP(A18,Base!$A:$I,2,FALSE) -> 6247148 | C18: =VLOOKUP(A18,Base!$A:$I,4,FALSE) -> м | D18: 2 | E18: 60х150 | F18: 60 | G18: 150 | H18: Сталь | I18: LKM SV60 | J18: =VLOOKUP(I18,Base!$A:$I,2,FALSE) -> 6247466 | K18: =VLOOKUP(I18,Base!$A:$I,4,FALSE) -> шт. | L18: 2 | M18: 910 SD 6x40 | N18: =VLOOKUP(M18,Base!$A:$I,2,FALSE) -> 2351064 | O18: =VLOOKUP(M18,Base!$A:$I,4,FALSE) -> шт. | P18: 11 | Q18: LKM I60150FS | R18: =VLOOKUP(Q18,Base!$A:$I,2,FALSE) -> 6248152 | S18: =VLOOKUP(Q18,Base!$A:$I,4,FALSE) -> шт. | T18: 1 | U18: LKM SV60 | V18: =VLOOKUP(U18,Base!$A:$I,2,FALSE) -> 6247466 | W18: =VLOOKUP(U18,Base!$A:$I,4,FALSE) -> шт. | X18: 4 | Y18: 910 SD 6x40 | Z18: =VLOOKUP(Y18,Base!$A:$I,2,FALSE) -> 2351064 | AA18: =VLOOKUP(Y18,Base!$A:$I,4,FALSE) -> шт. | AB18: 4 | AC18: LKM A60150RW | AD18: =VLOOKUP(AC18,Base!$A:$I,2,FALSE) -> 6249582 | AE18: =VLOOKUP(AC18,Base!$A:$I,4,FALSE) -> шт. | AF18: 1 | AG18: LKM SV60 | AH18: =VLOOKUP(AG18,Base!$A:$I,2,FALSE) -> 6247466 | AI18: =VLOOKUP(AG18,Base!$A:$I,4,FALSE) -> шт. | AJ18: 4 | AK18: 910 SD 6x40 | AL18: =VLOOKUP(AK18,Base!$A:$I,2,FALSE) -> 2351064 | AM18: =VLOOKUP(AK18,Base!$A:$I,4,FALSE) -> шт. | AN18: 4 | AO18: LKM T60150RW | AP18: =VLOOKUP(AO18,Base!$A:$I,2,FALSE) -> 6249728 | AQ18: =VLOOKUP(AO18,Base!$A:$I,4,FALSE) -> шт. | AR18: 1 | AS18: LKM SV60 | AT18: =VLOOKUP(AS18,Base!$A:$I,2,FALSE) -> 6247466 | AU18: =VLOOKUP(AS18,Base!$A:$I,4,FALSE) -> шт. | AV18: 6 | AW18: 910 SD 6x40 | AX18: =VLOOKUP(AW18,Base!$A:$I,2,FALSE) -> 2351064 | AY18: =VLOOKUP(AW18,Base!$A:$I,4,FALSE) -> шт. | AZ18: 6 | BA18: LKM F60150RW | BB18: =VLOOKUP(BA18,Base!$A:$I,2,FALSE) -> 6249515 | BC18: =VLOOKUP(BA18,Base!$A:$I,4,FALSE) -> шт. | BD18: 1 | BE18: LKM SV60 | BF18: =VLOOKUP(BE18,Base!$A:$I,2,FALSE) -> 6247466 | BG18: =VLOOKUP(BE18,Base!$A:$I,4,FALSE) -> шт. | BH18: 4 | BI18: 910 SD 6x40 | BJ18: =VLOOKUP(BI18,Base!$A:$I,2,FALSE) -> 2351064 | BK18: =VLOOKUP(BI18,Base!$A:$I,4,FALSE) -> шт. | BL18: 4 | BM18: LKM E60150RW | BN18: =VLOOKUP(BM18,Base!$A:$I,2,FALSE) -> 6249825 | BO18: =VLOOKUP(BM18,Base!$A:$I,4,FALSE) -> шт. | BP18: 1 | BQ18: KSR60150 | BR18: =VLOOKUP(BQ18,Base!$A:$I,2,FALSE) -> 6249854 | BS18: =VLOOKUP(BQ18,Base!$A:$I,4,FALSE) -> шт. | BT18: 1 | BU18: LKM TWS55 | BV18: =VLOOKUP(BU18,Base!$A:$I,2,FALSE) -> 6249876 | BW18: =VLOOKUP(BU18,Base!$A:$I,4,FALSE) -> м | BX18: 1
A19: LKM60150RW | B19: =VLOOKUP(A19,Base!$A:$I,2,FALSE) -> 6248640 | C19: =VLOOKUP(A19,Base!$A:$I,4,FALSE) -> м | D19: 2 | E19: 60х150 | F19: 60 | G19: 150 | H19: Белый | I19: LKM SV60 | J19: =VLOOKUP(I19,Base!$A:$I,2,FALSE) -> 6247466 | K19: =VLOOKUP(I19,Base!$A:$I,4,FALSE) -> шт. | L19: 2 | M19: 910 SD 6x40 | N19: =VLOOKUP(M19,Base!$A:$I,2,FALSE) -> 2351064 | O19: =VLOOKUP(M19,Base!$A:$I,4,FALSE) -> шт. | P19: 11 | Q19: LKM I60150RW | R19: =VLOOKUP(Q19,Base!$A:$I,2,FALSE) -> 6249647 | S19: =VLOOKUP(Q19,Base!$A:$I,4,FALSE) -> шт. | T19: 1 | U19: LKM SV60 | V19: =VLOOKUP(U19,Base!$A:$I,2,FALSE) -> 6247466 | W19: =VLOOKUP(U19,Base!$A:$I,4,FALSE) -> шт. | X19: 4 | Y19: 910 SD 6x40 | Z19: =VLOOKUP(Y19,Base!$A:$I,2,FALSE) -> 2351064 | AA19: =VLOOKUP(Y19,Base!$A:$I,4,FALSE) -> шт. | AB19: 4 | AC19: LKM A60150RW | AD19: =VLOOKUP(AC19,Base!$A:$I,2,FALSE) -> 6249582 | AE19: =VLOOKUP(AC19,Base!$A:$I,4,FALSE) -> шт. | AF19: 1 | AG19: LKM SV60 | AH19: =VLOOKUP(AG19,Base!$A:$I,2,FALSE) -> 6247466 | AI19: =VLOOKUP(AG19,Base!$A:$I,4,FALSE) -> шт. | AJ19: 4 | AK19: 910 SD 6x40 | AL19: =VLOOKUP(AK19,Base!$A:$I,2,FALSE) -> 2351064 | AM19: =VLOOKUP(AK19,Base!$A:$I,4,FALSE) -> шт. | AN19: 4 | AO19: LKM T60150RW | AP19: =VLOOKUP(AO19,Base!$A:$I,2,FALSE) -> 6249728 | AQ19: =VLOOKUP(AO19,Base!$A:$I,4,FALSE) -> шт. | AR19: 1 | AS19: LKM SV60 | AT19: =VLOOKUP(AS19,Base!$A:$I,2,FALSE) -> 6247466 | AU19: =VLOOKUP(AS19,Base!$A:$I,4,FALSE) -> шт. | AV19: 6 | AW19: 910 SD 6x40 | AX19: =VLOOKUP(AW19,Base!$A:$I,2,FALSE) -> 2351064 | AY19: =VLOOKUP(AW19,Base!$A:$I,4,FALSE) -> шт. | AZ19: 6 | BA19: LKM F60150RW | BB19: =VLOOKUP(BA19,Base!$A:$I,2,FALSE) -> 6249515 | BC19: =VLOOKUP(BA19,Base!$A:$I,4,FALSE) -> шт. | BD19: 1 | BE19: LKM SV60 | BF19: =VLOOKUP(BE19,Base!$A:$I,2,FALSE) -> 6247466 | BG19: =VLOOKUP(BE19,Base!$A:$I,4,FALSE) -> шт. | BH19: 4 | BI19: 910 SD 6x40 | BJ19: =VLOOKUP(BI19,Base!$A:$I,2,FALSE) -> 2351064 | BK19: =VLOOKUP(BI19,Base!$A:$I,4,FALSE) -> шт. | BL19: 4 | BM19: LKM E60150RW | BN19: =VLOOKUP(BM19,Base!$A:$I,2,FALSE) -> 6249825 | BO19: =VLOOKUP(BM19,Base!$A:$I,4,FALSE) -> шт. | BP19: 1 | BQ19: KSR60150 | BR19: =VLOOKUP(BQ19,Base!$A:$I,2,FALSE) -> 6249854 | BS19: =VLOOKUP(BQ19,Base!$A:$I,4,FALSE) -> шт. | BT19: 1 | BU19: LKM TWS55 | BV19: =VLOOKUP(BU19,Base!$A:$I,2,FALSE) -> 6249876 | BW19: =VLOOKUP(BU19,Base!$A:$I,4,FALSE) -> м | BX19: 1
A20: LKM60200FS | B20: =VLOOKUP(A20,Base!$A:$I,2,FALSE) -> 6247164 | C20: =VLOOKUP(A20,Base!$A:$I,4,FALSE) -> м | D20: 2 | E20: 60х200 | F20: 60 | G20: 200 | H20: Сталь | I20: LKM SV60 | J20: =VLOOKUP(I20,Base!$A:$I,2,FALSE) -> 6247466 | K20: =VLOOKUP(I20,Base!$A:$I,4,FALSE) -> шт. | L20: 2 | M20: 910 SD 6x40 | N20: =VLOOKUP(M20,Base!$A:$I,2,FALSE) -> 2351064 | O20: =VLOOKUP(M20,Base!$A:$I,4,FALSE) -> шт. | P20: 11 | Q20: LKM I60200FS | R20: =VLOOKUP(Q20,Base!$A:$I,2,FALSE) -> 6248160 | S20: =VLOOKUP(Q20,Base!$A:$I,4,FALSE) -> шт. | T20: 1 | U20: LKM SV60 | V20: =VLOOKUP(U20,Base!$A:$I,2,FALSE) -> 6247466 | W20: =VLOOKUP(U20,Base!$A:$I,4,FALSE) -> шт. | X20: 4 | Y20: 910 SD 6x40 | Z20: =VLOOKUP(Y20,Base!$A:$I,2,FALSE) -> 2351064 | AA20: =VLOOKUP(Y20,Base!$A:$I,4,FALSE) -> шт. | AB20: 4 | AC20: LKM A60200RW | AD20: =VLOOKUP(AC20,Base!$A:$I,2,FALSE) -> 6249590 | AE20: =VLOOKUP(AC20,Base!$A:$I,4,FALSE) -> шт. | AF20: 1 | AG20: LKM SV60 | AH20: =VLOOKUP(AG20,Base!$A:$I,2,FALSE) -> 6247466 | AI20: =VLOOKUP(AG20,Base!$A:$I,4,FALSE) -> шт. | AJ20: 4 | AK20: 910 SD 6x40 | AL20: =VLOOKUP(AK20,Base!$A:$I,2,FALSE) -> 2351064 | AM20: =VLOOKUP(AK20,Base!$A:$I,4,FALSE) -> шт. | AN20: 4 | AO20: LKM T60200RW | AP20: =VLOOKUP(AO20,Base!$A:$I,2,FALSE) -> 6249736 | AQ20: =VLOOKUP(AO20,Base!$A:$I,4,FALSE) -> шт. | AR20: 1 | AS20: LKM SV60 | AT20: =VLOOKUP(AS20,Base!$A:$I,2,FALSE) -> 6247466 | AU20: =VLOOKUP(AS20,Base!$A:$I,4,FALSE) -> шт. | AV20: 6 | AW20: 910 SD 6x40 | AX20: =VLOOKUP(AW20,Base!$A:$I,2,FALSE) -> 2351064 | AY20: =VLOOKUP(AW20,Base!$A:$I,4,FALSE) -> шт. | AZ20: 6 | BA20: LKM F60200RW | BB20: =VLOOKUP(BA20,Base!$A:$I,2,FALSE) -> 6249523 | BC20: =VLOOKUP(BA20,Base!$A:$I,4,FALSE) -> шт. | BD20: 1 | BE20: LKM SV60 | BF20: =VLOOKUP(BE20,Base!$A:$I,2,FALSE) -> 6247466 | BG20: =VLOOKUP(BE20,Base!$A:$I,4,FALSE) -> шт. | BH20: 4 | BI20: 910 SD 6x40 | BJ20: =VLOOKUP(BI20,Base!$A:$I,2,FALSE) -> 2351064 | BK20: =VLOOKUP(BI20,Base!$A:$I,4,FALSE) -> шт. | BL20: 4 | BM20: LKM E60200RW | BN20: =VLOOKUP(BM20,Base!$A:$I,2,FALSE) -> 6249833 | BO20: =VLOOKUP(BM20,Base!$A:$I,4,FALSE) -> шт. | BP20: 1 | BQ20: KSR60200 | BR20: =VLOOKUP(BQ20,Base!$A:$I,2,FALSE) -> 6249856 | BS20: =VLOOKUP(BQ20,Base!$A:$I,4,FALSE) -> шт. | BT20: 1 | BU20: LKM TWS55 | BV20: =VLOOKUP(BU20,Base!$A:$I,2,FALSE) -> 6249876 | BW20: =VLOOKUP(BU20,Base!$A:$I,4,FALSE) -> м | BX20: 1
A21: LKM60200RW | B21: =VLOOKUP(A21,Base!$A:$I,2,FALSE) -> 6248667 | C21: =VLOOKUP(A21,Base!$A:$I,4,FALSE) -> м | D21: 2 | E21: 60х200 | F21: 60 | G21: 200 | H21: Белый | I21: LKM SV60 | J21: =VLOOKUP(I21,Base!$A:$I,2,FALSE) -> 6247466 | K21: =VLOOKUP(I21,Base!$A:$I,4,FALSE) -> шт. | L21: 2 | M21: 910 SD 6x40 | N21: =VLOOKUP(M21,Base!$A:$I,2,FALSE) -> 2351064 | O21: =VLOOKUP(M21,Base!$A:$I,4,FALSE) -> шт. | P21: 11 | Q21: LKM I60200RW | R21: =VLOOKUP(Q21,Base!$A:$I,2,FALSE) -> 6249655 | S21: =VLOOKUP(Q21,Base!$A:$I,4,FALSE) -> шт. | T21: 1 | U21: LKM SV60 | V21: =VLOOKUP(U21,Base!$A:$I,2,FALSE) -> 6247466 | W21: =VLOOKUP(U21,Base!$A:$I,4,FALSE) -> шт. | X21: 4 | Y21: 910 SD 6x40 | Z21: =VLOOKUP(Y21,Base!$A:$I,2,FALSE) -> 2351064 | AA21: =VLOOKUP(Y21,Base!$A:$I,4,FALSE) -> шт. | AB21: 4 | AC21: LKM A60200RW | AD21: =VLOOKUP(AC21,Base!$A:$I,2,FALSE) -> 6249590 | AE21: =VLOOKUP(AC21,Base!$A:$I,4,FALSE) -> шт. | AF21: 1 | AG21: LKM SV60 | AH21: =VLOOKUP(AG21,Base!$A:$I,2,FALSE) -> 6247466 | AI21: =VLOOKUP(AG21,Base!$A:$I,4,FALSE) -> шт. | AJ21: 4 | AK21: 910 SD 6x40 | AL21: =VLOOKUP(AK21,Base!$A:$I,2,FALSE) -> 2351064 | AM21: =VLOOKUP(AK21,Base!$A:$I,4,FALSE) -> шт. | AN21: 4 | AO21: LKM T60200RW | AP21: =VLOOKUP(AO21,Base!$A:$I,2,FALSE) -> 6249736 | AQ21: =VLOOKUP(AO21,Base!$A:$I,4,FALSE) -> шт. | AR21: 1 | AS21: LKM SV60 | AT21: =VLOOKUP(AS21,Base!$A:$I,2,FALSE) -> 6247466 | AU21: =VLOOKUP(AS21,Base!$A:$I,4,FALSE) -> шт. | AV21: 6 | AW21: 910 SD 6x40 | AX21: =VLOOKUP(AW21,Base!$A:$I,2,FALSE) -> 2351064 | AY21: =VLOOKUP(AW21,Base!$A:$I,4,FALSE) -> шт. | AZ21: 6 | BA21: LKM F60200RW | BB21: =VLOOKUP(BA21,Base!$A:$I,2,FALSE) -> 6249523 | BC21: =VLOOKUP(BA21,Base!$A:$I,4,FALSE) -> шт. | BD21: 1 | BE21: LKM SV60 | BF21: =VLOOKUP(BE21,Base!$A:$I,2,FALSE) -> 6247466 | BG21: =VLOOKUP(BE21,Base!$A:$I,4,FALSE) -> шт. | BH21: 4 | BI21: 910 SD 6x40 | BJ21: =VLOOKUP(BI21,Base!$A:$I,2,FALSE) -> 2351064 | BK21: =VLOOKUP(BI21,Base!$A:$I,4,FALSE) -> шт. | BL21: 4 | BM21: LKM E60200RW | BN21: =VLOOKUP(BM21,Base!$A:$I,2,FALSE) -> 6249833 | BO21: =VLOOKUP(BM21,Base!$A:$I,4,FALSE) -> шт. | BP21: 1 | BQ21: KSR60200 | BR21: =VLOOKUP(BQ21,Base!$A:$I,2,FALSE) -> 6249856 | BS21: =VLOOKUP(BQ21,Base!$A:$I,4,FALSE) -> шт. | BT21: 1 | BU21: LKM TWS55 | BV21: =VLOOKUP(BU21,Base!$A:$I,2,FALSE) -> 6249876 | BW21: =VLOOKUP(BU21,Base!$A:$I,4,FALSE) -> м | BX21: 1
A22: LKM80080FS | B22: =VLOOKUP(A22,Base!$A:$I,2,FALSE) -> 6247194 | C22: =VLOOKUP(A22,Base!$A:$I,4,FALSE) -> м | D22: 2 | E22: 80х80 | F22: 80 | G22: 80 | H22: Сталь | I22: LKM SV80 | J22: =VLOOKUP(I22,Base!$A:$I,2,FALSE) -> 6247472 | K22: =VLOOKUP(I22,Base!$A:$I,4,FALSE) -> шт. | L22: 2 | M22: 910 SD 6x40 | N22: =VLOOKUP(M22,Base!$A:$I,2,FALSE) -> 2351064 | O22: =VLOOKUP(M22,Base!$A:$I,4,FALSE) -> шт. | P22: 11 | Q22: LKM I80080FS | R22: =VLOOKUP(Q22,Base!$A:$I,2,FALSE) -> 6248336 | S22: =VLOOKUP(Q22,Base!$A:$I,4,FALSE) -> шт. | T22: 1 | U22: LKM SV80 | V22: =VLOOKUP(U22,Base!$A:$I,2,FALSE) -> 6247472 | W22: =VLOOKUP(U22,Base!$A:$I,4,FALSE) -> шт. | X22: 4 | Y22: 910 SD 6x40 | Z22: =VLOOKUP(Y22,Base!$A:$I,2,FALSE) -> 2351064 | AA22: =VLOOKUP(Y22,Base!$A:$I,4,FALSE) -> шт. | AB22: 4 | AC22: LKM A80080RW | AD22: =VLOOKUP(AC22,Base!$A:$I,2,FALSE) -> 6248432 | AE22: =VLOOKUP(AC22,Base!$A:$I,4,FALSE) -> шт. | AF22: 1 | AG22: LKM SV80 | AH22: =VLOOKUP(AG22,Base!$A:$I,2,FALSE) -> 6247472 | AI22: =VLOOKUP(AG22,Base!$A:$I,4,FALSE) -> шт. | AJ22: 4 | AK22: 910 SD 6x40 | AL22: =VLOOKUP(AK22,Base!$A:$I,2,FALSE) -> 2351064 | AM22: =VLOOKUP(AK22,Base!$A:$I,4,FALSE) -> шт. | AN22: 4 | AO22: LKM T80080RW | AP22: =VLOOKUP(AO22,Base!$A:$I,2,FALSE) -> 6248450 | AQ22: =VLOOKUP(AO22,Base!$A:$I,4,FALSE) -> шт. | AR22: 1 | AS22: LKM SV80 | AT22: =VLOOKUP(AS22,Base!$A:$I,2,FALSE) -> 6247472 | AU22: =VLOOKUP(AS22,Base!$A:$I,4,FALSE) -> шт. | AV22: 6 | AW22: 910 SD 6x40 | AX22: =VLOOKUP(AW22,Base!$A:$I,2,FALSE) -> 2351064 | AY22: =VLOOKUP(AW22,Base!$A:$I,4,FALSE) -> шт. | AZ22: 6 | BA22: LKM F80080RW | BB22: =VLOOKUP(BA22,Base!$A:$I,2,FALSE) -> 6248428 | BC22: =VLOOKUP(BA22,Base!$A:$I,4,FALSE) -> шт. | BD22: 1 | BE22: LKM SV80 | BF22: =VLOOKUP(BE22,Base!$A:$I,2,FALSE) -> 6247472 | BG22: =VLOOKUP(BE22,Base!$A:$I,4,FALSE) -> шт. | BH22: 4 | BI22: 910 SD 6x40 | BJ22: =VLOOKUP(BI22,Base!$A:$I,2,FALSE) -> 2351064 | BK22: =VLOOKUP(BI22,Base!$A:$I,4,FALSE) -> шт. | BL22: 4 | BM22: LKM E80080RW | BN22: =VLOOKUP(BM22,Base!$A:$I,2,FALSE) -> 6248454 | BO22: =VLOOKUP(BM22,Base!$A:$I,4,FALSE) -> шт. | BP22: 1 | BQ22: KSR80080 | BR22: =VLOOKUP(BQ22,Base!$A:$I,2,FALSE) -> 6249865 | BS22: =VLOOKUP(BQ22,Base!$A:$I,4,FALSE) -> шт. | BT22: 1 | BU22: LKM TWS75 | BV22: =VLOOKUP(BU22,Base!$A:$I,2,FALSE) -> 6249880 | BW22: =VLOOKUP(BU22,Base!$A:$I,4,FALSE) -> м | BX22: 1
A23: LKM80080RW | B23: =VLOOKUP(A23,Base!$A:$I,2,FALSE) -> 6248694 | C23: =VLOOKUP(A23,Base!$A:$I,4,FALSE) -> м | D23: 2 | E23: 80х80 | F23: 80 | G23: 80 | H23: Белый | I23: LKM SV80 | J23: =VLOOKUP(I23,Base!$A:$I,2,FALSE) -> 6247472 | K23: =VLOOKUP(I23,Base!$A:$I,4,FALSE) -> шт. | L23: 2 | M23: 910 SD 6x40 | N23: =VLOOKUP(M23,Base!$A:$I,2,FALSE) -> 2351064 | O23: =VLOOKUP(M23,Base!$A:$I,4,FALSE) -> шт. | P23: 11 | Q23: LKM I80080RW | R23: =VLOOKUP(Q23,Base!$A:$I,2,FALSE) -> 6248436 | S23: =VLOOKUP(Q23,Base!$A:$I,4,FALSE) -> шт. | T23: 1 | U23: LKM SV80 | V23: =VLOOKUP(U23,Base!$A:$I,2,FALSE) -> 6247472 | W23: =VLOOKUP(U23,Base!$A:$I,4,FALSE) -> шт. | X23: 4 | Y23: 910 SD 6x40 | Z23: =VLOOKUP(Y23,Base!$A:$I,2,FALSE) -> 2351064 | AA23: =VLOOKUP(Y23,Base!$A:$I,4,FALSE) -> шт. | AB23: 4 | AC23: LKM A80080RW | AD23: =VLOOKUP(AC23,Base!$A:$I,2,FALSE) -> 6248432 | AE23: =VLOOKUP(AC23,Base!$A:$I,4,FALSE) -> шт. | AF23: 1 | AG23: LKM SV80 | AH23: =VLOOKUP(AG23,Base!$A:$I,2,FALSE) -> 6247472 | AI23: =VLOOKUP(AG23,Base!$A:$I,4,FALSE) -> шт. | AJ23: 4 | AK23: 910 SD 6x40 | AL23: =VLOOKUP(AK23,Base!$A:$I,2,FALSE) -> 2351064 | AM23: =VLOOKUP(AK23,Base!$A:$I,4,FALSE) -> шт. | AN23: 4 | AO23: LKM T80080RW | AP23: =VLOOKUP(AO23,Base!$A:$I,2,FALSE) -> 6248450 | AQ23: =VLOOKUP(AO23,Base!$A:$I,4,FALSE) -> шт. | AR23: 1 | AS23: LKM SV80 | AT23: =VLOOKUP(AS23,Base!$A:$I,2,FALSE) -> 6247472 | AU23: =VLOOKUP(AS23,Base!$A:$I,4,FALSE) -> шт. | AV23: 6 | AW23: 910 SD 6x40 | AX23: =VLOOKUP(AW23,Base!$A:$I,2,FALSE) -> 2351064 | AY23: =VLOOKUP(AW23,Base!$A:$I,4,FALSE) -> шт. | AZ23: 6 | BA23: LKM F80080RW | BB23: =VLOOKUP(BA23,Base!$A:$I,2,FALSE) -> 6248428 | BC23: =VLOOKUP(BA23,Base!$A:$I,4,FALSE) -> шт. | BD23: 1 | BE23: LKM SV80 | BF23: =VLOOKUP(BE23,Base!$A:$I,2,FALSE) -> 6247472 | BG23: =VLOOKUP(BE23,Base!$A:$I,4,FALSE) -> шт. | BH23: 4 | BI23: 910 SD 6x40 | BJ23: =VLOOKUP(BI23,Base!$A:$I,2,FALSE) -> 2351064 | BK23: =VLOOKUP(BI23,Base!$A:$I,4,FALSE) -> шт. | BL23: 4 | BM23: LKM E80080RW | BN23: =VLOOKUP(BM23,Base!$A:$I,2,FALSE) -> 6248454 | BO23: =VLOOKUP(BM23,Base!$A:$I,4,FALSE) -> шт. | BP23: 1 | BQ23: KSR80080 | BR23: =VLOOKUP(BQ23,Base!$A:$I,2,FALSE) -> 6249865 | BS23: =VLOOKUP(BQ23,Base!$A:$I,4,FALSE) -> шт. | BT23: 1 | BU23: LKM TWS75 | BV23: =VLOOKUP(BU23,Base!$A:$I,2,FALSE) -> 6249880 | BW23: =VLOOKUP(BU23,Base!$A:$I,4,FALSE) -> м | BX23: 1
A24: --- | B24: --- | C24: --- | E24: --- | F24: --- | G24: --- | H24: --- | I24: --- | J24: --- | K24: --- | L24: --- | M24: --- | N24: --- | O24: --- | P24: --- | Q24: --- | R24: --- | S24: --- | T24: --- | U24: --- | V24: --- | W24: --- | X24: --- | Y24: --- | Z24: --- | AA24: --- | AB24: --- | AC24: --- | AD24: --- | AE24: --- | AF24: --- | AG24: --- | AH24: --- | AI24: --- | AJ24: --- | AK24: --- | AL24: --- | AM24: --- | AN24: --- | AO24: --- | AP24: --- | AQ24: --- | AR24: --- | AS24: --- | AT24: --- | AU24: --- | AV24: --- | AW24: --- | AX24: --- | AY24: --- | AZ24: --- | BA24: --- | BB24: --- | BC24: --- | BD24: --- | BE24: --- | BF24: --- | BG24: --- | BH24: --- | BI24: --- | BJ24: --- | BK24: --- | BL24: --- | BM24: --- | BN24: --- | BO24: --- | BP24: --- | BQ24: --- | BR24: --- | BS24: --- | BT24: --- | BU24: --- | BV24: --- | BW24: --- | BX24: ---
A26: --- | B26: --- | C26: --- | E26: --- | F26: --- | G26: --- | H26: --- | I26: --- | J26: --- | K26: --- | L26: --- | M26: --- | N26: --- | O26: --- | P26: --- | Q26: --- | R26: --- | S26: --- | T26: --- | U26: --- | V26: --- | W26: --- | X26: --- | Y26: --- | Z26: --- | AA26: --- | AB26: --- | AC26: --- | AD26: --- | AE26: --- | AF26: --- | AG26: --- | AH26: --- | AI26: --- | AJ26: --- | AK26: --- | AL26: --- | AM26: --- | AN26: --- | AO26: --- | AP26: --- | AQ26: --- | AR26: --- | AS26: --- | AT26: --- | AU26: --- | AV26: --- | AW26: --- | AX26: --- | AY26: --- | AZ26: --- | BA26: --- | BB26: --- | BC26: --- | BD26: --- | BE26: --- | BF26: --- | BG26: --- | BH26: --- | BI26: --- | BJ26: --- | BK26: --- | BL26: --- | BM26: --- | BN26: --- | BO26: --- | BP26: --- | BQ26: --- | BR26: --- | BS26: --- | BT26: --- | BU26: --- | BV26: --- | BW26: --- | BX26: ---

Sheet Исходные данные
A2: КАЛЬКУЛЯТОР
A4: РАСЧЕТА КАБЕЛЬНЫХ ТРАСС
A5: на основе металлических лотков серии LKM
F11: ВЫБЕРИТЕ ДАННЫЕ:
F12: Размер A, мм
F13: Размер B, мм
F14: Цвет короба
F15: Перегородка | G15: ---
F17: ВВЕДИТЕ КОЛИЧЕСТВО:
F18: Длина трассы, м | I18: Примечания:
F19: Внутренний угол, шт. | G19: --- | I19: "---" - Для выбранных размеров короба данный элемент отсутствует.
F20: Внешний угол, шт. | G20: ---
F21: Т-образная секция, шт. | G21: ---
F22: Плоский угол, шт. | G22: ---
F23: Заглушка, шт. | G23: ---
F24: Кольцо для защиты кромок, шт. | I24: =IF(G24="---","Внимание! Для выбранных размеров короба данный элемент отсутствует.","") -> 
F56: Короб | G56: =IFERROR(INDEX(BL!$A$3:$BX$26,MATCH($G$12&$G$13&$G$14,BL!$F$3:$F$26&BL!$G$3:$G$26&BL!$H$3:$H$26,0),MATCH('Исходные данные'!$F56,BL!$A$1:$BX$1,0)),"---") -> 0 | H56: =IFERROR(CEILING($G$18,INDEX(BL!$A$3:$BX$26,MATCH($G$12&$G$13&$G$14,BL!$F$3:$F$26&BL!$G$3:$G$26&BL!$H$3:$H$26,0),MATCH('Исходные данные'!$F$56,BL!$A$1:$BX$1,0)+3)),"---") -> 0
F57: Стыковой соединитель | G57: =IFERROR(INDEX(BL!$A$3:$BX$26,MATCH($G$12&$G$13&$G$14,BL!$F$3:$F$26&BL!$G$3:$G$26&BL!$H$3:$H$26,0),MATCH('Исходные данные'!$F57,BL!$A$1:$BX$1,0)),"---") -> 0 | H57: =IFERROR(FLOOR($H$56/INDEX(BL!$A$3:$BX$26,MATCH($G$12&$G$13&$G$14,BL!$F$3:$F$26&BL!$G$3:$G$26&BL!$H$3:$H$26,0),MATCH('Исходные данные'!$F56,BL!$A$1:$BX$1,0)+3),1)*INDEX(BL!$A$3:$BX$26,MATCH($G$12&$G$13&$G$14,BL!$F$3:$F$26&BL!$G$3:$G$26&BL!$H$3:$H$26,0),MATCH('Исходные данные'!$F57,BL!$A$1:$BX$1,0)+3),"---") -> ---
F58: Крепеж короба | G58: =IFERROR(INDEX(BL!$A$3:$BX$26,MATCH($G$12&$G$13&$G$14,BL!$F$3:$F$26&BL!$G$3:$G$26&BL!$H$3:$H$26,0),MATCH('Исходные данные'!$F58,BL!$A$1:$BX$1,0)),"---") -> 0 | H58: =IFERROR(FLOOR($H$56/INDEX(BL!$A$3:$BX$26,MATCH($G$12&$G$13&$G$14,BL!$F$3:$F$26&BL!$G$3:$G$26&BL!$H$3:$H$26,0),MATCH('Исходные данные'!$F56,BL!$A$1:$BX$1,0)+3),1)*INDEX(BL!$A$3:$BX$26,MATCH($G$12&$G$13&$G$14,BL!$F$3:$F$26&BL!$G$3:$G$26&BL!$H$3:$H$26,0),MATCH('Исходные данные'!$F58,BL!$A$1:$BX$1,0)+3),"---") -> ---
F59: Внутренний угол | G59: =IFERROR(INDEX(BL!$A$3:$BX$26,MATCH($G$12&$G$13&$G$14,BL!$F$3:$F$26&BL!$G$3:$G$26&BL!$H$3:$H$26,0),MATCH('Исходные данные'!$F59,BL!$A$1:$BX$1,0)),"---") -> 0 | H59: =IFERROR($G$19,"---") -> ---
F60: Стык. соед. внутреннего угла | G60: =IFERROR(INDEX(BL!$A$3:$BX$26,MATCH($G$12&$G$13&$G$14,BL!$F$3:$F$26&BL!$G$3:$G$26&BL!$H$3:$H$26,0),MATCH('Исходные данные'!$F60,BL!$A$1:$BX$1,0)),"---") -> 0 | H60: =IFERROR($H$59*INDEX(BL!$A$3:$BX$26,MATCH($G$12&$G$13&$G$14,BL!$F$3:$F$26&BL!$G$3:$G$26&BL!$H$3:$H$26,0),MATCH('Исходные данные'!$F60,BL!$A$1:$BX$1,0)+3),"---") -> ---
F61: Крепеж внутреннего угла | G61: =IFERROR(INDEX(BL!$A$3:$BX$26,MATCH($G$12&$G$13&$G$14,BL!$F$3:$F$26&BL!$G$3:$G$26&BL!$H$3:$H$26,0),MATCH('Исходные данные'!$F61,BL!$A$1:$BX$1,0)),"---") -> 0 | H61: =IFERROR($H$59*INDEX(BL!$A$3:$BX$26,MATCH($G$12&$G$13&$G$14,BL!$F$3:$F$26&BL!$G$3:$G$26&BL!$H$3:$H$26,0),MATCH('Исходные данные'!$F61,BL!$A$1:$BX$1,0)+3),"---") -> ---
F62: Внешний угол | G62: =IFERROR(INDEX(BL!$A$3:$BX$26,MATCH($G$12&$G$13&$G$14,BL!$F$3:$F$26&BL!$G$3:$G$26&BL!$H$3:$H$26,0),MATCH('Исходные данные'!$F62,BL!$A$1:$BX$1,0)),"---") -> 0 | H62: =IFERROR($G$20,"---") -> ---
F63: Стык. соед. внешнего угла | G63: =IFERROR(INDEX(BL!$A$3:$BX$26,MATCH($G$12&$G$13&$G$14,BL!$F$3:$F$26&BL!$G$3:$G$26&BL!$H$3:$H$26,0),MATCH('Исходные данные'!$F63,BL!$A$1:$BX$1,0)),"---") -> 0 | H63: =IFERROR($H$62*INDEX(BL!$A$3:$BX$26,MATCH($G$12&$G$13&$G$14,BL!$F$3:$F$26&BL!$G$3:$G$26&BL!$H$3:$H$26,0),MATCH('Исходные данные'!$F63,BL!$A$1:$BX$1,0)+3),"---") -> ---
F64: Крепеж внешнего угла | G64: =IFERROR(INDEX(BL!$A$3:$BX$26,MATCH($G$12&$G$13&$G$14,BL!$F$3:$F$26&BL!$G$3:$G$26&BL!$H$3:$H$26,0),MATCH('Исходные данные'!$F64,BL!$A$1:$BX$1,0)),"---") -> 0 | H64: =IFERROR($H$62*INDEX(BL!$A$3:$BX$26,MATCH($G$12&$G$13&$G$14,BL!$F$3:$F$26&BL!$G$3:$G$26&BL!$H$3:$H$26,0),MATCH('Исходные данные'!$F64,BL!$A$1:$BX$1,0)+3),"---") -> ---
F65: Т-образная секция | G65: =IFERROR(INDEX(BL!$A$3:$BX$26,MATCH($G$12&$G$13&$G$14,BL!$F$3:$F$26&BL!$G$3:$G$26&BL!$H$3:$H$26,0),MATCH('Исходные данные'!$F65,BL!$A$1:$BX$1,0)),"---") -> 0 | H65: =IFERROR($G$21,"---") -> ---
F66: Стык. соед. Т-образной секции | G66: =IFERROR(INDEX(BL!$A$3:$BX$26,MATCH($G$12&$G$13&$G$14,BL!$F$3:$F$26&BL!$G$3:$G$26&BL!$H$3:$H$26,0),MATCH('Исходные данные'!$F66,BL!$A$1:$BX$1,0)),"---") -> 0 | H66: =IFERROR($H$65*INDEX(BL!$A$3:$BX$26,MATCH($G$12&$G$13&$G$14,BL!$F$3:$F$26&BL!$G$3:$G$26&BL!$H$3:$H$26,0),MATCH('Исходные данные'!$F66,BL!$A$1:$BX$1,0)+3),"---") -> ---
F67: Крепеж Т-образной секции | G67: =IFERROR(INDEX(BL!$A$3:$BX$26,MATCH($G$12&$G$13&$G$14,BL!$F$3:$F$26&BL!$G$3:$G$26&BL!$H$3:$H$26,0),MATCH('Исходные данные'!$F67,BL!$A$1:$BX$1,0)),"---") -> 0 | H67: =IFERROR($H$65*INDEX(BL!$A$3:$BX$26,MATCH($G$12&$G$13&$G$14,BL!$F$3:$F$26&BL!$G$3:$G$26&BL!$H$3:$H$26,0),MATCH('Исходные данные'!$F67,BL!$A$1:$BX$1,0)+3),"---") -> ---
F68: Плоский угол | G68: =IFERROR(INDEX(BL!$A$3:$BX$26,MATCH($G$12&$G$13&$G$14,BL!$F$3:$F$26&BL!$G$3:$G$26&BL!$H$3:$H$26,0),MATCH('Исходные данные'!$F68,BL!$A$1:$BX$1,0)),"---") -> 0 | H68: =IFERROR($G$22,"---") -> ---
F69: Стык. соед. плоского угла | G69: =IFERROR(INDEX(BL!$A$3:$BX$26,MATCH($G$12&$G$13&$G$14,BL!$F$3:$F$26&BL!$G$3:$G$26&BL!$H$3:$H$26,0),MATCH('Исходные данные'!$F69,BL!$A$1:$BX$1,0)),"---") -> 0 | H69: =IFERROR($H$68*INDEX(BL!$A$3:$BX$26,MATCH($G$12&$G$13&$G$14,BL!$F$3:$F$26&BL!$G$3:$G$26&BL!$H$3:$H$26,0),MATCH('Исходные данные'!$F69,BL!$A$1:$BX$1,0)+3),"---") -> ---
F70: Крепеж плоского угла | G70: =IFERROR(INDEX(BL!$A$3:$BX$26,MATCH($G$12&$G$13&$G$14,BL!$F$3:$F$26&BL!$G$3:$G$26&BL!$H$3:$H$26,0),MATCH('Исходные данные'!$F70,BL!$A$1:$BX$1,0)),"---") -> 0 | H70: =IFERROR($H$68*INDEX(BL!$A$3:$BX$26,MATCH($G$12&$G$13&$G$14,BL!$F$3:$F$26&BL!$G$3:$G$26&BL!$H$3:$H$26,0),MATCH('Исходные данные'!$F70,BL!$A$1:$BX$1,0)+3),"---") -> ---
F71: Заглушка | G71: =IFERROR(INDEX(BL!$A$3:$BX$26,MATCH($G$12&$G$13&$G$14,BL!$F$3:$F$26&BL!$G$3:$G$26&BL!$H$3:$H$26,0),MATCH('Исходные данные'!$F71,BL!$A$1:$BX$1,0)),"---") -> 0 | H71: =IFERROR($G$23,"---") -> ---
F72: Кольцо для защиты кромок | G72: =IFERROR(INDEX(BL!$A$3:$BX$26,MATCH($G$12&$G$13&$G$14,BL!$F$3:$F$26&BL!$G$3:$G$26&BL!$H$3:$H$26,0),MATCH('Исходные данные'!$F72,BL!$A$1:$BX$1,0)),"---") -> 0 | H72: =IFERROR($G$24,"---") -> 0
F73: Перегородка | G73: =IFERROR(INDEX(BL!$A$3:$BX$26,MATCH($G$12&$G$13&$G$14,BL!$F$3:$F$26&BL!$G$3:$G$26&BL!$H$3:$H$26,0),MATCH('Исходные данные'!$F73,BL!$A$1:$BX$1,0)),"---") -> 0 | H73: =IFERROR($H$56*$G$15,"---") -> ---

Sheet SS2 (hidden)
A1: № | B1: Обозначение | C1: Наименование | D1: Кол-во | E1: Масса | F1: Примечание | H1: № | I1: Наименование | J1: Тип | K1: Артикул | L1: Поставщик | M1: Ед.изм. | N1: Кол-во | O1: Масса | P1: Примечание | R1: № | S1: Обозначение | T1: Наименование | U1: Масса | V1: Примечание | W1: Сумма по полю Кол-во | Y1: № | Z1: Наименование | AA1: Тип | AB1: Артикул | AC1: Поставщик | AD1: Ед.изм. | AE1: Масса | AF1: Примечание | AG1: Сумма по полю Кол-во
A2: =H2 ->  | B2: =CONCATENATE(J2, " (арт. ",K2,")") ->  | C2: =I2 ->  | D2: =N2 -> 0 | E2: =O2 ->  | F2: =P2 ->  | H2: =VLOOKUP($J2,Base!$A:$I,7,FALSE) ->  | I2: =VLOOKUP($J2,Base!$A:$I,3,FALSE) ->  | J2: ='Исходные данные'!G56 -> 0 | K2: =VLOOKUP($J2,Base!$A:$I,2,FALSE) ->  | L2: ООО ''ОБО Беттерманн'', г.Липецк | M2: =VLOOKUP($J2,Base!$A:$I,4,FALSE) ->  | N2: ='Исходные данные'!H56 -> 0 | O2: =VLOOKUP($J2,Base!$A:$I,5,FALSE) ->  | P2: =VLOOKUP($J2,Base!$A:$I,6,FALSE) ->  | R2: #Н/Д | S2: #Н/Д | T2: #Н/Д | U2: #Н/Д | V2: #Н/Д | W2: 0 | Y2: #Н/Д | Z2: #Н/Д | AA2: 0 | AB2: #Н/Д | AC2: ООО ''ОБО Беттерманн'', г.Липецк | AD2: #Н/Д | AE2: #Н/Д | AF2: #Н/Д | AG2: 0
A3: =H3 ->  | B3: =CONCATENATE(J3, " (арт. ",K3,")") ->  | C3: =I3 ->  | D3: =N3 -> --- | E3: =O3 ->  | F3: =P3 ->  | H3: =VLOOKUP($J3,Base!$A:$I,7,FALSE) ->  | I3: =VLOOKUP($J3,Base!$A:$I,3,FALSE) ->  | J3: ='Исходные данные'!G57 -> 0 | K3: =VLOOKUP($J3,Base!$A:$I,2,FALSE) ->  | L3: ООО ''ОБО Беттерманн'', г.Липецк | M3: =VLOOKUP($J3,Base!$A:$I,4,FALSE) ->  | N3: ='Исходные данные'!H57 -> --- | O3: =VLOOKUP($J3,Base!$A:$I,5,FALSE) ->  | P3: =VLOOKUP($J3,Base!$A:$I,6,FALSE) ->  | R3: (пусто) | S3: (пусто) | T3: (пусто) | U3: (пусто) | V3: (пусто) | Y3: (пусто) | Z3: (пусто) | AA3: (пусто) | AB3: (пусто) | AC3: (пусто) | AD3: (пусто) | AE3: (пусто) | AF3: (пусто)
D4: --- | H4: =VLOOKUP($J4,Base!$A:$I,7,FALSE) ->  | I4: =VLOOKUP($J4,Base!$A:$I,3,FALSE) ->  | J4: ='Исходные данные'!G58 -> 0 | K4: =VLOOKUP($J4,Base!$A:$I,2,FALSE) ->  | L4: ООО ''ОБО Беттерманн'', г.Липецк | M4: =VLOOKUP($J4,Base!$A:$I,4,FALSE) ->  | N4: ='Исходные данные'!H58 -> --- | O4: =VLOOKUP($J4,Base!$A:$I,5,FALSE) ->  | P4: =VLOOKUP($J4,Base!$A:$I,6,FALSE) ->  | R4: Общий итог | W4: 0 | Y4: Общий итог | AG4: 0
D5: --- | H5: =VLOOKUP($J5,Base!$A:$I,7,FALSE) ->  | I5: =VLOOKUP($J5,Base!$A:$I,3,FALSE) ->  | J5: ='Исходные данные'!G59 -> 0 | K5: =VLOOKUP($J5,Base!$A:$I,2,FALSE) ->  | L5: ООО ''ОБО Беттерманн'', г.Липецк | M5: =VLOOKUP($J5,Base!$A:$I,4,FALSE) ->  | N5: ='Исходные данные'!H59 -> --- | O5: =VLOOKUP($J5,Base!$A:$I,5,FALSE) ->  | P5: =VLOOKUP($J5,Base!$A:$I,6,FALSE) -> 
D6: --- | H6: =VLOOKUP($J6,Base!$A:$I,7,FALSE) ->  | I6: =VLOOKUP($J6,Base!$A:$I,3,FALSE) ->  | J6: ='Исходные данные'!G60 -> 0 | K6: =VLOOKUP($J6,Base!$A:$I,2,FALSE) ->  | L6: ООО ''ОБО Беттерманн'', г.Липецк | M6: =VLOOKUP($J6,Base!$A:$I,4,FALSE) ->  | N6: ='Исходные данные'!H60 -> --- | O6: =VLOOKUP($J6,Base!$A:$I,5,FALSE) ->  | P6: =VLOOKUP($J6,Base!$A:$I,6,FALSE) -> 
D7: --- | H7: =VLOOKUP($J7,Base!$A:$I,7,FALSE) ->  | I7: =VLOOKUP($J7,Base!$A:$I,3,FALSE) ->  | J7: ='Исходные данные'!G61 -> 0 | K7: =VLOOKUP($J7,Base!$A:$I,2,FALSE) ->  | L7: ООО ''ОБО Беттерманн'', г.Липецк | M7: =VLOOKUP($J7,Base!$A:$I,4,FALSE) ->  | N7: ='Исходные данные'!H61 -> --- | O7: =VLOOKUP($J7,Base!$A:$I,5,FALSE) ->  | P7: =VLOOKUP($J7,Base!$A:$I,6,FALSE) -> 
D8: --- | H8: =VLOOKUP($J8,Base!$A:$I,7,FALSE) ->  | I8: =VLOOKUP($J8,Base!$A:$I,3,FALSE) ->  | J8: ='Исходные данные'!G62 -> 0 | K8: =VLOOKUP($J8,Base!$A:$I,2,FALSE) ->  | L8: ООО ''ОБО Беттерманн'', г.Липецк | M8: =VLOOKUP($J8,Base!$A:$I,4,FALSE) ->  | N8: ='Исходные данные'!H62 -> --- | O8: =VLOOKUP($J8,Base!$A:$I,5,FALSE) ->  | P8: =VLOOKUP($J8,Base!$A:$I,6,FALSE) -> 
D9: --- | H9: =VLOOKUP($J9,Base!$A:$I,7,FALSE) ->  | I9: =VLOOKUP($J9,Base!$A:$I,3,FALSE) ->  | J9: ='Исходные данные'!G63 -> 0 | K9: =VLOOKUP($J9,Base!$A:$I,2,FALSE) ->  | L9: ООО ''ОБО Беттерманн'', г.Липецк | M9: =VLOOKUP($J9,Base!$A:$I,4,FALSE) ->  | N9: ='Исходные данные'!H63 -> --- | O9: =VLOOKUP($J9,Base!$A:$I,5,FALSE) ->  | P9: =VLOOKUP($J9,Base!$A:$I,6,FALSE) -> 
D10: --- | H10: =VLOOKUP($J10,Base!$A:$I,7,FALSE) ->  | I10: =VLOOKUP($J10,Base!$A:$I,3,FALSE) ->  | J10: ='Исходные данные'!G64 -> 0 | K10: =VLOOKUP($J10,Base!$A:$I,2,FALSE) ->  | L10: ООО ''ОБО Беттерманн'', г.Липецк | M10: =VLOOKUP($J10,Base!$A:$I,4,FALSE) ->  | N10: ='Исходные данные'!H64 -> --- | O10: =VLOOKUP($J10,Base!$A:$I,5,FALSE) ->  | P10: =VLOOKUP($J10,Base!$A:$I,6,FALSE) -> 
D11: --- | H11: =VLOOKUP($J11,Base!$A:$I,7,FALSE) ->  | I11: =VLOOKUP($J11,Base!$A:$I,3,FALSE) ->  | J11: ='Исходные данные'!G65 -> 0 | K11: =VLOOKUP($J11,Base!$A:$I,2,FALSE) ->  | L11: ООО ''ОБО Беттерманн'', г.Липецк | M11: =VLOOKUP($J11,Base!$A:$I,4,FALSE) ->  | N11: ='Исходные данные'!H65 -> --- | O11: =VLOOKUP($J11,Base!$A:$I,5,FALSE) ->  | P11: =VLOOKUP($J11,Base!$A:$I,6,FALSE) -> 
D12: --- | H12: =VLOOKUP($J12,Base!$A:$I,7,FALSE) ->  | I12: =VLOOKUP($J12,Base!$A:$I,3,FALSE) ->  | J12: ='Исходные данные'!G66 -> 0 | K12: =VLOOKUP($J12,Base!$A:$I,2,FALSE) ->  | L12: ООО ''ОБО Беттерманн'', г.Липецк | M12: =VLOOKUP($J12,Base!$A:$I,4,FALSE) ->  | N12: ='Исходные данные'!H66 -> --- | O12: =VLOOKUP($J12,Base!$A:$I,5,FALSE) ->  | P12: =VLOOKUP($J12,Base!$A:$I,6,FALSE) -> 
D13: --- | H13: =VLOOKUP($J13,Base!$A:$I,7,FALSE) ->  | I13: =VLOOKUP($J13,Base!$A:$I,3,FALSE) ->  | J13: ='Исходные данные'!G67 -> 0 | K13: =VLOOKUP($J13,Base!$A:$I,2,FALSE) ->  | L13: ООО ''ОБО Беттерманн'', г.Липецк | M13: =VLOOKUP($J13,Base!$A:$I,4,FALSE) ->  | N13: ='Исходные данные'!H67 -> --- | O13: =VLOOKUP($J13,Base!$A:$I,5,FALSE) ->  | P13: =VLOOKUP($J13,Base!$A:$I,6,FALSE) -> 
D14: --- | H14: =VLOOKUP($J14,Base!$A:$I,7,FALSE) ->  | I14: =VLOOKUP($J14,Base!$A:$I,3,FALSE) ->  | J14: ='Исходные данные'!G68 -> 0 | K14: =VLOOKUP($J14,Base!$A:$I,2,FALSE) ->  | L14: ООО ''ОБО Беттерманн'', г.Липецк | M14: =VLOOKUP($J14,Base!$A:$I,4,FALSE) ->  | N14: ='Исходные данные'!H68 -> --- | O14: =VLOOKUP($J14,Base!$A:$I,5,FALSE) ->  | P14: =VLOOKUP($J14,Base!$A:$I,6,FALSE) -> 
D15: --- | H15: =VLOOKUP($J15,Base!$A:$I,7,FALSE) ->  | I15: =VLOOKUP($J15,Base!$A:$I,3,FALSE) ->  | J15: ='Исходные данные'!G69 -> 0 | K15: =VLOOKUP($J15,Base!$A:$I,2,FALSE) ->  | L15: ООО ''ОБО Беттерманн'', г.Липецк | M15: =VLOOKUP($J15,Base!$A:$I,4,FALSE) ->  | N15: ='Исходные данные'!H69 -> --- | O15: =VLOOKUP($J15,Base!$A:$I,5,FALSE) ->  | P15: =VLOOKUP($J15,Base!$A:$I,6,FALSE) -> 
D16: --- | H16: =VLOOKUP($J16,Base!$A:$I,7,FALSE) ->  | I16: =VLOOKUP($J16,Base!$A:$I,3,FALSE) ->  | J16: ='Исходные данные'!G70 -> 0 | K16: =VLOOKUP($J16,Base!$A:$I,2,FALSE) ->  | L16: ООО ''ОБО Беттерманн'', г.Липецк | M16: =VLOOKUP($J16,Base!$A:$I,4,FALSE) ->  | N16: ='Исходные данные'!H70 -> --- | O16: =VLOOKUP($J16,Base!$A:$I,5,FALSE) ->  | P16: =VLOOKUP($J16,Base!$A:$I,6,FALSE) -> 
D17: --- | H17: =VLOOKUP($J17,Base!$A:$I,7,FALSE) ->  | I17: =VLOOKUP($J17,Base!$A:$I,3,FALSE) ->  | J17: ='Исходные данные'!G71 -> 0 | K17: =VLOOKUP($J17,Base!$A:$I,2,FALSE) ->  | L17: ООО ''ОБО Беттерманн'', г.Липецк | M17: =VLOOKUP($J17,Base!$A:$I,4,FALSE) ->  | N17: ='Исходные данные'!H71 -> --- | O17: =VLOOKUP($J17,Base!$A:$I,5,FALSE) ->  | P17: =VLOOKUP($J17,Base!$A:$I,6,FALSE) -> 
D18: 0 | H18: =VLOOKUP($J18,Base!$A:$I,7,FALSE) ->  | I18: =VLOOKUP($J18,Base!$A:$I,3,FALSE) ->  | J18: ='Исходные данные'!G72 -> 0 | K18: =VLOOKUP($J18,Base!$A:$I,2,FALSE) ->  | L18: ООО ''ОБО Беттерманн'', г.Липецк | M18: =VLOOKUP($J18,Base!$A:$I,4,FALSE) ->  | N18: ='Исходные данные'!H72 -> 0 | O18: =VLOOKUP($J18,Base!$A:$I,5,FALSE) ->  | P18: =VLOOKUP($J18,Base!$A:$I,6,FALSE) -> 
D19: --- | H19: =VLOOKUP($J19,Base!$A:$I,7,FALSE) ->  | I19: =VLOOKUP($J19,Base!$A:$I,3,FALSE) ->  | J19: ='Исходные данные'!G73 -> 0 | K19: =VLOOKUP($J19,Base!$A:$I,2,FALSE) ->  | L19: ООО ''ОБО Беттерманн'', г.Липецк | M19: =VLOOKUP($J19,Base!$A:$I,4,FALSE) ->  | N19: ='Исходные данные'!H73 -> --- | O19: =VLOOKUP($J19,Base!$A:$I,5,FALSE) ->  | P19: =VLOOKUP($J19,Base!$A:$I,6,FALSE) -> 

Sheet Спец. на лист
B1: СПЕЦИФИКАЦИЯ НА ЛИСТ ЧЕРТЕЖА
B2: (по форме 7 ГОСТ Р 21.101-2020)
B4: № п/п | C4: № | D4: Обозначение | E4: Наименование | F4: Кол-во | G4: Масса | H4: Примечание
B5: 1
B6: =IF(B5<COUNTA($E$5:$E$2000),B5+1,"") -> 
B7: =IF(B6<COUNTA($E$5:$E$2000),B6+1,"") -> 
B71: =IF(B70<COUNTA($E$5:$E$2000),B70+1,"") -> 
B135: =IF(B134<COUNTA($E$5:$E$2000),B134+1,"") -> 
B199: =IF(B198<COUNTA($E$5:$E$2000),B198+1,"") -> 
B263: =IF(B262<COUNTA($E$5:$E$2000),B262+1,"") -> 

Sheet Спец. обор. изд. и мат.
B1: СПЕЦИФИКАЦИЯ ОБОРУДОВАНИЯ, ИЗДЕЛИЙ И МАТЕРИАЛОВ
B2: (по форме 1 ГОСТ Р 21.110-2013)
B4: № п/п | C4: № | D4: Наименование | E4: Тип | F4: Артикул | G4: Поставщик | H4: Ед.изм. | I4: Кол-во | J4: Масса | K4: Примечание
B5: 1
B6: =IF(B5<COUNTA($E$5:$E$2000),B5+1,"") -> 
B7: =IF(B6<COUNTA($E$5:$E$2000),B6+1,"") -> 
B71: =IF(B70<COUNTA($E$5:$E$2000),B70+1,"") -> 
B135: =IF(B134<COUNTA($E$5:$E$2000),B134+1,"") -> 
B199: =IF(B198<COUNTA($E$5:$E$2000),B198+1,"") -> 
B263: =IF(B262<COUNTA($E$5:$E$2000),B262+1,"") -> 
